Workbook

Sheet Disclaimer
B1: DISCLAIMER
B3: This electronic file is made available for the convenience of prospective tenderers and no responsibility is accepted by the Engineer or the Employer for the accuracy of the data in this file or for any discrepancy between the data in this file and the Bill of Quantities bound into the relevant tender document. Tenderers or others using the information in this file do so at their own risk. This file and the data therein, including any hard copy produced from this file are the copyright of Tlowana Consulting & Engineering (Pty) Ltd. This file will not be amended to take account of any Notice(s) to Tenderers issued.
B5: Notwithstanding the provision of this electronic file, tenders may not be submitted in electronic form nor may tenders be submitted on a print-out made from this file. The requirements of the Conditions of Tender of the relevant tender document, must be strictly adhered to.
B8: AFWYSING
B10: Hierdie elektroniese leêr word vir die gerief van voornemende tenderaars beskikbaar gestel en geen verantwoordelikheid word deur die Ingenieur of die Werkgewer aanvaar nie vir die akkuraatheid van die data in hierdie leêr of enige teenstrydigheid tussen die data in hierdie leêr en die Hoeveelheidslys ingebind in die betrokke tender dokument. Tenderaars en ander gebruik die inligting in heirdie leêr op eie risiko. Hierdie leêr en data daarin, asook enige herprodusering van hierdie leêr, is kopiereg van Tlowana Consulting & Engineering (Edms) Bpk. Hierdie leêr sal nie aangepas word om enige Kennisgewing(s) aan Tenderaars in ag te neem nie.
B12: Nieteenstaande die beskikbaarstelling van hierdie elektroniese leêr, mag tenders nie in elektroniese vorm of as 'n drukstuk van hierdie elektroniese leêr ingedien word nie. Die vereistes van die Tendervoorwaardes van die betrokke tender dokument moet ten strengste nagekom word.

Sheet A
B1: =ProjectTitle -> CONTRACT NO: VCW380/PWLPLM/24: MALUTI-A-PHOFUNG LOCAL MUNICIPALITY: APPOINTMENT OF A MAXIMUM OF FOUR (04) CONTRACTORS FOR THE REPAIRS OF POTABLE WATER LEAKS MALUTI-A-PHOFUNG LOCAL MUNICIPALITY IN PHUTHADITJABA | E1: SECTION A
E2: PRELIMINARY AND GENERAL
A4: UID | B4: ITEM | C4: PAY REFS | D4: DESCRIPTION | E4: UNIT | F4: QTY | G4: RATE | H4: AMOUNT
A6: 1 | B6: A | C6: SANS 1200 A | D6: SECTION A : PRELIMINARY AND GENERAL
A8: 2 | B8: A 1 | C8: PSA 8.2.1 | D8: SCHEDULED FIXED-CHARGE ITEMS AND VALUE RELATED ITEMS
A10: 3 | B10: A 1.1 | C10: 8.3.1 | D10: Contractual Requirements (All Regions)
A12: 4 | B12: A 1.1.1 | D12: Provision of performance security on appointment for active assigned work up to R 10 000 000 | E12: Sum | F12: 1 | H12: =F12*G12 -> 0
A14: 5 | B14: A 1.1.2 | D14: Extra over for increasing the performance security for each additional R 2 000 000 or portion thereof of active assigned work | E14: No | F14: 1 | H14: =F14*G14 -> 0
A16: 6 | B16: A 1.1.3 | D16: Extra over for amendment, replacement, renewal or extension of performance security required in terms of the Contract | E16: No. | F16: 1 | H16: =F16*G16 -> 0
A18: 7 | B18: A 1.1.4 | D18: Contractual requirements of a general nature, excluding guarantees / sureties measured elsewhere, including all charges, fees, submissions, notices, records and obligations required under the Contract and not separately measured | E18: Sum | F18: 1 | H18: =F18*G18 -> 0
A20: 8 | B20: A 1.1.5 | D20: Initial contract establishment, inception meeting, pricing setup and reporting systems | E20: Sum | F20: 1 | H20: =F20*G20 -> 0
A22: 9 | B22: A 1.1.6 | D22: Preparation of quality plan, environmental controls and standard method statement templates | E22: Sum | F22: 1 | H22: =F22*G22 -> 0
A24: 10 | B24: A 1.1.7 | D24: Initial GIS / as-built coding structure and leak register setup for contract reporting | E24: Sum | F24: 1 | H24: =F24*G24 -> 0
A26: 11 | B26: A 1.2 | C26: 8.3.2 | D26: Establishment of Facilities on the Site. Establishment of Contractor’s regional base for the Greater Maluti-a-Phofung / Phuthaditjhaba service area, including all associated facilities required for the Contractor’s principal operating base.
A28: 12 | B28: A 1.2.1 | C28: 8.3.2.1 | D28: Facilities for Engineer (SABS 1200AB)
A30: 13 | B30: A 1.2.1.1 | D30: Furnished Office to SANS 1200 AB 3.2 Specifications | E30: Sum | F30: 1 | H30: =F30*G30 -> 0
A32: 14 | B32: A 1.2.1.2 | D32: Mobile Cellular Wifi Modem including 10GB of data per month for the sole use of the Engineers | E32: Month | F32: 24 | H32: =F32*G32 -> 0
A34: 15 | B34: A 1.2.1.3 | D34: Cellular Airtime allowance for the Engineers at 1 000 minutes talk time per month | E34: Month | F34: 24 | H34: =F34*G34 -> 0
A36: 16 | B36: A 1.2.1.4 | D36: Epson L14150 EcoTank A3 4-in-1 Wi-Fi Printer for sole use of the engineer including A4 & A3 paper and cartridges for the duration of the project | E36: Sum | F36: 1 | H36: =F36*G36 -> 0
A38: 17 | B38: A 1.2.1.5 | D38: Laptop 4 GHZ Processor ( i7 13th Gen ), 16 GB RAM, 1TB SSD, integrated graphics card Lenovo or similar approved, complete with carry bag and Bluetooth mouse Windows 11 64 bit operating system, MS Office Basic and MS Projects | E38: No. | F38: 1 | H38: =G38*F38 -> 0
A40: 18 | B40: A 1.2.1.6 | D40: Contract Notice Board | E40: Sum | F40: 1 | H40: =F40*G40 -> 0
A42: 19 | B42: A 1.2.1.7 | D42: Safety equipment for the Engineers
A44: 20 | B44: A 1.2.1.7.1 | D44: 2 x Sets of steel pointed safety shoes | E44: Sum | F44: 1 | H44: =F44*G44 -> 0
A46: 21 | B46: A 1.2.1.7.2 | D46: 2 x Safety jackets of vests | E46: Sum | F46: 1 | H46: =F46*G46 -> 0
A48: 22 | B48: A 1.2.1.7.3 | D48: 2 x Construction Hard Hats | E48: Sum | F48: 1 | H48: =F48*G48 -> 0
A53: TCF | B53: TOTAL CARRIED FORWARD | H53: =SUM(H5:H52) -> 0
B54: =ProjectTitle -> CONTRACT NO: VCW380/PWLPLM/24: MALUTI-A-PHOFUNG LOCAL MUNICIPALITY: APPOINTMENT OF A MAXIMUM OF FOUR (04) CONTRACTORS FOR THE REPAIRS OF POTABLE WATER LEAKS MALUTI-A-PHOFUNG LOCAL MUNICIPALITY IN PHUTHADITJABA | E54: SECTION A
E55: PRELIMINARY AND GENERAL
A57: UID | B57: ITEM | C57: PAY REFS | D57: DESCRIPTION | E57: UNIT | F57: QTY | G57: RATE | H57: AMOUNT
A58: TBF | B58: TOTAL BROUGHT FORWARD | H58: =H53 -> 0
A60: 23 | B60: A 1.3 | C60: 8.3.2.2 | D60: Facilities for Contractor (SABS 1200A)
A62: 24 | B62: A 1.3.1 | D62: Offices and storage sheds | E62: Sum | F62: 1 | H62: =F62*G62 -> 0
A64: 25 | B64: A 1.3.2 | D64: Living accommodation | E64: Sum | F64: 1 | H64: =F64*G64 -> 0
A66: 26 | B66: A 1.3.3 | D66: Ablution and latrine facilities with wash hand basins and taps | E66: Sum | F66: 1 | H66: =F66*G66 -> 0
A68: 27 | B68: A 1.3.4 | D68: Tools and equipment | E68: Sum | F68: 1 | H68: =F68*G68 -> 0
A70: 28 | B70: A 1.3.5 | D70: Water supplies, electric power and communications | E70: Sum | F70: 1 | H70: =F70*G70 -> 0
A72: 29 | B72: A 1.3.6 | D72: Rain gauge | E72: No | F72: 1 | H72: =F72*G72 -> 0
A74: 30 | B74: A 1.3.7 | D74: Dealing with water | E74: Sum | F74: 1 | H74: =F74*G74 -> 0
A76: 31 | B76: A 1.4 | C76: 8.3.3 | D76: Other Fixed -charge obligations
A78: 32 | B78: A 1.4.1 | D78: Provision of Site Security | E78: Sum | F78: 1 | H78: =F78*G78 -> 0
A80: 33 | B80: A 1.5 | C80: 8.3.4 | D80: Removal of Site Establishment | E80: Sum | F80: 1 | H80: =F80*G80 -> 0
A82: 34 | B82: A 1.6 | C82: PSA 8.3.5 | D82: Additional geographically separate Work Fronts
A84: 35 | B84: A 1.6.1 | D84: Establishment at an additional geographically separate Work Front, including mobilisation of supervisory staff, plant, tools, temporary stores, secure storage / container, temporary ablutions, local signage, local communications, temporary access arrangements and all associated costs required to commence work at that Work Front, complete | E84: No. | F84: 10 | H84: =F84*G84 -> 0
A86: 36 | B86: A 1.6.2 | D86: Removal of an instructed additional geographically separate Work Front on completion, suspension or closure of that Work Front, including clearing away, removal of temporary facilities, making good and leaving the area in a neat and acceptable condition, complete | E86: No. | F86: 10 | H86: =F86*G86 -> 0
A88: 37 | B88: A 1.6.3 | D88: Interim relocation / re-establishment of substantial resources between geographically separate Work Fronts on written instruction, including de-establishment from one Work Front and re-establishment at another, but excluding payment under Items A 1.6.1 and A 1.6.2 where separately measured | E88: Event | F88: 10 | H88: =F88*G88 -> 0
A90: 38 | B90: A 2 | C90: PSA 8.2.2 | D90: SCHEDULED TIME-RELATED ITEMS
A92: 39 | B92: A 2.1 | C92: PSA 8.4.1 | D92: Contractual Requirements | E92: Sum | F92: 1 | H92: =F92*G92 -> 0
A94: 40 | B94: A 2.2 | C94: 8.4.2 | D94: Operation and Maintenance of Facilities on Site for the duration of the Contract, for:
A96: 41 | B96: A 2.3 | C96: 8.4.2.1 | D96: Facilities for Engineer for duration of construction (SANS 1200 AB)
A98: 42 | B98: A 2.3.1 | D98: Furnished Office to SANS 1200 AB 3.2 Specifications | E98: Sum | F98: 1 | H98: =F98*G98 -> 0
A100: 43 | B100: A 2.3.2 | D100: Survey assistants | E100: Sum | F100: 1 | H100: =F100*G100 -> 0
A102: 44 | B102: A 2.3.3 | D102: Survey Equipment and Material | E102: Sum | F102: 1 | H102: =F102*G102 -> 0
A104: 45 | B104: A 2.4 | C104: 8.4.2.2 | D104: Facilities for Contractor for duration of construction, except where otherwise stated
A112: TCF | B112: TOTAL CARRIED FORWARD | H112: =SUM(H58:H111) -> 0
B113: =ProjectTitle -> CONTRACT NO: VCW380/PWLPLM/24: MALUTI-A-PHOFUNG LOCAL MUNICIPALITY: APPOINTMENT OF A MAXIMUM OF FOUR (04) CONTRACTORS FOR THE REPAIRS OF POTABLE WATER LEAKS MALUTI-A-PHOFUNG LOCAL MUNICIPALITY IN PHUTHADITJABA | E113: SECTION A
E114: PRELIMINARY AND GENERAL
A116: UID | B116: ITEM | C116: PAY REFS | D116: DESCRIPTION | E116: UNIT | F116: QTY | G116: RATE | H116: AMOUNT
A117: TBF | B117: TOTAL BROUGHT FORWARD | H117: =H112 -> 0
A119: 46 | B119: A 2.4.1 | D119: Offices and storage sheds | E119: Sum | F119: 1 | H119: =F119*G119 -> 0
A121: 47 | B121: A 2.4.2 | D121: Workshops | E121: Sum | F121: 1 | H121: =F121*G121 -> 0
A123: 48 | B123: A 2.4.3 | D123: Laboratories | E123: Sum | F123: 1 | H123: =F123*G123 -> 0
A125: 49 | B125: A 2.4.4 | D125: Living accommodation | E125: Sum | F125: 1 | H125: =F125*G125 -> 0
A127: 50 | B127: A 2.4.5 | D127: Ablution and Latrine facilities | E127: Sum | F127: 1 | H127: =F127*G127 -> 0
A129: 51 | B129: A 2.4.6 | D129: Tools and Equipment | E129: Sum | F129: 1 | H129: =F129*G129 -> 0
A131: 52 | B131: A 2.4.7 | D131: Water supplies, electric power and communications | E131: Sum | F131: 1 | H131: =F131*G131 -> 0
A133: 53 | B133: A 2.4.8 | D133: Dealing with water | E133: Sum | F133: 1 | H133: =F133*G133 -> 0
A135: 54 | B135: A 2.4.9 | D135: Acess | E135: Sum | F135: 1 | H135: =F135*G135 -> 0
A137: 55 | B137: A 2.4.10 | D137: Plant | E137: Sum | F137: 1 | H137: =F137*G137 -> 0
A139: 56 | B139: A 2.4.11 | C139: 8.4.3 | D139: Construction Supervision for the duration of the contract | E139: Sum | F139: 1 | H139: =F139*G139 -> 0
A141: 57 | B141: A 2.4.12 | C141: 8.4.4 | D141: Company and Head Office overhead costs for the Duration of the Contract | E141: Sum | F141: 1 | H141: =F141*G141 -> 0
A143: 58 | B143: A 2.4.13 | C143: 8.4.5 | D143: Provision of Security Personnel at Site offices, buildings, works etc. | E143: Sum | F143: 1 | H143: =F143*G143 -> 0
A145: 59 | B145: A 3 | D145: MONTHLY TIME-RELATED CHARGES
A147: 60 | B147: A 3.1 | C147: 8.3.3 | D147: Contract manager / project lead | E147: Month | F147: 24 | H147: =F147*G147 -> 0
A149: 61 | B149: A 3.2 | C149: 8.3.3 | D149: Site agent / supervisor | E149: Month | F149: 24 | H149: =F149*G149 -> 0
A151: 62 | B151: A 3.3 | C151: 8.3.3 | D151: Safety, environmental and public interface management | E151: Month | F151: 24 | H151: =F151*G151 -> 0
A153: 63 | B153: A 3.4 | C153: 8.3.3 | D153: Maintenance of site establishment, records, attendance registers and monthly progress reporting | E153: Month | F153: 24 | H153: =F153*G153 -> 0
A155: 64 | B155: A 3.5 | C155: 8.3.3 | D155: GIS / as-built and photo record updating support | E155: Month | F155: 24
A157: 65 | B157: A 3.6 | C157: PSA 8.3.5 | D157: Time-related cost of maintaining an instructed additional geographically separate Work Front in operation, including temporary stores, secure storage / container, ablutions, local supervision attendance, local signage, communications, security and all associated overheads for that Work Front, complete | E157: Month | F157: 24 | H157: =F156*G156 -> 0
A159: 66 | B159: A 4 | D159: SUMS STATED PROVISIONALLY BY EMPLOYER
A161: 67 | B161: A 4.1 | D161: Relocation of Municipal Services | E161: Prov. Sum | F161: 1 | G161: R50,000.00 | H161: =F161*G161 -> R 50 000.00
A163: 68 | B163: A 4.2 | D163: Overheads, charges and profit on item A2.3.3 | E163: % | F163: R50,000.00 | H163: =F163*G163 -> 0
A165: 69 | B165: A 4.3 | D165: Community Liaison Officer (CLO) remuneration | E165: Prov. Sum | F165: 1 | G165: R240,000.00 | H165: =F165*G165 -> R 240 000.00
A167: 70 | B167: A 4.4 | D167: Overheads, charges and profit on item A2.3.5 | E167: % | F167: R240,000.00 | H167: =F167*G167 -> 0
A169: 71 | B169: A 4.5 | D169: Conducting of skills audit, development of training plan, attending accredited training courses | E169: Prov. Sum | F169: 1 | G169: R100,000.00 | H169: =F169*G169 -> R 100 000.00
A171: 72 | B171: A 4.6 | D171: Overheads, charges and profit over Item 2.3.7 | E171: % | F171: R100,000.00 | H171: =F171*G171 -> 0
A173: 73 | B173: A 4.7 | D173: Transport of workers for training where it is not possible to undertake training in close proximity to the site | E173: Prov. Sum | F173: 1 | G173: R50,000.00 | H173: =F173*G173 -> R 50 000.00
A179: TCF | B179: TOTAL CARRIED FORWARD | H179: =SUM(H117:H178) -> R440,000.00
B180: =ProjectTitle -> CONTRACT NO: VCW380/PWLPLM/24: MALUTI-A-PHOFUNG LOCAL MUNICIPALITY: APPOINTMENT OF A MAXIMUM OF FOUR (04) CONTRACTORS FOR THE REPAIRS OF POTABLE WATER LEAKS MALUTI-A-PHOFUNG LOCAL MUNICIPALITY IN PHUTHADITJABA | E180: SECTION A
E181: PRELIMINARY AND GENERAL
A183: UID | B183: ITEM | C183: PAY REFS | D183: DESCRIPTION | E183: UNIT | F183: QTY | G183: RATE | H183: AMOUNT
A184: TBF | B184: TOTAL BROUGHT FORWARD | H184: =H179 -> R440,000.00
A186: 74 | B186: A 4.8 | D186: Overheads, charges and profit on item A2.3.9 | E186: % | F186: R50,000.00 | H186: =F186*G186 -> 0
A188: 75 | B188: A 4.9 | D188: Accommodation of workers for training where it is not possible to undertake training in close proximity to the site | E188: Prov. Sum | F188: 1 | G188: R50,000.00 | H188: =F188*G188 -> R 50 000.00
A190: 76 | B190: A 4.10 | D190: Overheads, charges and profit on item A2.3.11 | E190: % | F190: R50,000.00 | H190: =F190*G190 -> 0
A192: 77 | B192: A 5 | C192: 8.8 | D192: TEMPORARY WORKS
A194: 78 | B194: A 5.1 | C194: 8.8.2 | D194: Accommodation of traffic | E194: Sum | F194: 1 | H194: =F194*G194 -> 0
A196: 79 | B196: A 6 | D196: Payment for the following items shall only be made on instruction of the Engineer to utilise these items:
A198: 80 | B198: A 6.1 | D198: Portable STOP/GO-RY signs | E198: No | F198: 4 | H198: =F198*G198 -> 0
A200: 81 | B200: A 6.2 | D200: Road works - TW336 | E200: No | F200: 4 | H200: =F200*G200 -> 0
A202: 82 | B202: A 6.3 | D202: Temporary Regulatory Sign - TR201-60 | E202: No | F202: 4 | H202: =F202*G202 -> 0
A204: 83 | B204: A 6.4 | D204: Temporary Regulatory Sign - TR201-40 | E204: No | F204: 4 | H204: =F204*G204 -> 0
A206: 84 | B206: A 6.5 | D206: Keep Right - TR104 | E206: No | F206: 4 | H206: =F206*G206 -> 0
A208: 85 | B208: A 6.6 | D208: Warning TW336-WG (We Apologize for …) | E208: No | F208: 2 | H208: =F208*G208 -> 0
A210: 86 | B210: A 6.7 | D210: Danger Plate TW401/TW402 | E210: No | F210: 20 | H210: =F210*G210 -> 0
A212: 87 | B212: A 6.8 | D212: Plastic traffic cones (large) | E212: No | F212: 20 | H212: =F212*G212 -> 0
A214: 88 | B214: A 6.9 | D214: Plastic barrier with droppers and fencing to barricade off works area and trenches | E214: m | F214: 1000 | H214: =F214*G214 -> 0
A216: 89 | B216: A 7 | D216: Special water control in terms of project specification. | E216: Sum | F216: 1 | H216: =F216*G216 -> 0
A218: 90 | B218: A 8 | D218: Supply temporary vehicle access to appropriate households. | E218: No | F218: 10 | H218: =F218*G218 -> 0
A220: 91 | B220: A 9 | D220: SPECIALIST COMPLIANCE AND ADMINISTRATION
A222: 92 | B222: A 9.1 | D222: Asbestos-containing pipework management plan, induction and compliance oversight | E222: Task | F222: 6 | H222: =F222*G222 -> 0
A224: 93 | B224: A 9.2 | D224: Traffic accommodation establishment for work in major roads / urban centres | E224: Task | F224: 10 | H224: =F224*G224 -> 0
A226: 94 | B226: A 9.3 | D226: Emergency call-out and out-of-hours standby arrangement | E226: Month | F226: 36 | H226: =F226*G226 -> 0
A228: 95 | B228: A 10 | D228: OCCUPATIONAL HEALTH AND SAFETY
A230: 96 | B230: A 10.1 | C230: PSA 8.9.1 | D230: Cost of OHS measures in terms of Construction Regulations (2014) of the Occupational Health and Safety Act. | E230: Month | F230: 36 | H230: =F230*G230 -> 0
A232: 97 | B232: A 10.2 | C232: PSA 8.9.2 | D232: Compilation and maintenance of a Health and Safety Plan, including Risk Assessment, Safety Works Procedures and Methods Statement. | E232: Sum | F232: 1 | H232: =F232*G232 -> 0
A234: 98 | B234: A 10.3 | C234: PS A 8.9.3 | D234: Compilation and maintenance of the Health and Safety File. | E234: Sum | F234: 1 | H234: =F234*G234 -> 0
A236: 99 | B236: A 10.4 | C236: PS A 8.9.4 | D236: Medical Examinations | E236: No. | F236: 50 | H236: =F236*G236 -> 0
A238: 100 | B238: A 11 | D238: ENVIRONMENTAL MANAGEMENT PLAN
A244: TCF | B244: TOTAL CARRIED FORWARD | H244: =SUM(H184:H243) -> R490,000.00
B245: =ProjectTitle -> CONTRACT NO: VCW380/PWLPLM/24: MALUTI-A-PHOFUNG LOCAL MUNICIPALITY: APPOINTMENT OF A MAXIMUM OF FOUR (04) CONTRACTORS FOR THE REPAIRS OF POTABLE WATER LEAKS MALUTI-A-PHOFUNG LOCAL MUNICIPALITY IN PHUTHADITJABA | E245: SECTION A
E246: PRELIMINARY AND GENERAL
A248: UID | B248: ITEM | C248: PAY REFS | D248: DESCRIPTION | E248: UNIT | F248: QTY | G248: RATE | H248: AMOUNT
A249: TBF | B249: TOTAL BROUGHT FORWARD | H249: =H244 -> R490,000.00
A251: 101 | B251: A 11.1 | C251: PSA 10.1 | D251: Compliation of a Environmental Management Plan | E251: No. | F251: 1 | H251: =F251*G251 -> 0
A253: 102 | B253: A 11.2 | C253: PSA 10.2 | D253: Compliantce and impletmentation of the Environmental Management Plan | E253: Month | F253: 24 | H253: =F253*G253 -> 0
A255: 103 | B255: A 12 | C255: PSA 11 | D255: LOCAL ECONOMIC PARTICIPLATION PLAN
A257: 104 | B257: A 12.1 | C257: PSA 10.1 | D257: Compliation of a Local Econimic Participation Plan | E257: No. | F257: 1 | H257: =F257*G257 -> 0
A259: 105 | B259: A 12.2 | C259: PSA 10.2 | D259: Compliantce and impletmentation of the Local Econimic Participation Plan | E259: Month | F259: 24 | H259: =F259*G259 -> 0
A322: TSF | B322: TOTAL SECTION A CARRIED TO SUMMARY | H322: =SUM(H249:H321) -> R490,000.00

Sheet B
B1: =ProjectTitle -> CONTRACT NO: VCW380/PWLPLM/24: MALUTI-A-PHOFUNG LOCAL MUNICIPALITY: APPOINTMENT OF A MAXIMUM OF FOUR (04) CONTRACTORS FOR THE REPAIRS OF POTABLE WATER LEAKS MALUTI-A-PHOFUNG LOCAL MUNICIPALITY IN PHUTHADITJABA | E1: SECTION B
E2: DAYWORKS
A4: UID | B4: ITEM | C4: PAY REFS | D4: DESCRIPTION | E4: UNIT | F4: QTY | G4: RATE | H4: AMOUNT
A6: 106 | B6: B | C6: SANS 1200A 8.7 | D6: SECTION B: DAYWORKS
A8: 107 | B8: B1 | D8: Labour : (Rates shall include all on-costs, including Supervision)
A10: 108 | B10: B1.1 | D10: Contract manager | E10: hr | F10: 80 | H10: =F10*G10 -> 0
A12: 109 | B12: B1.2 | D12: Site agent / foreman | E12: hr | F12: 240 | H12: =F12*G12 -> 0
A14: 110 | B14: B1.3 | D14: Leak detection technician | E14: hr | F14: 240 | H14: =F14*G14 -> 0
A16: 111 | B16: B1.4 | D16: Artisan plumber / pipe fitter | E16: hr | F16: 320 | H16: =F16*G16 -> 0
A18: 112 | B18: B1.5 | D18: Welder / steel pipe repair artisan | E18: hr | F18: 160 | H18: =F18*G18 -> 0
A20: 113 | B20: B1.6 | D20: Electrician / instrumentation technician | E20: hr | F20: 160 | H20: =F20*G20 -> 0
A22: 114 | B22: B1.7 | D22: General worker | E22: hr | F22: 1,000 | H22: =F22*G22 -> 0
A24: 115 | B24: B1.8 | D24: Flagman / traffic marshal | E24: hr | F24: 320 | H24: =F24*G24 -> 0
A26: 116 | B26: B2 | D26: Plant : (Wet rates shall be tendered and shall include all on-costs, including supervision)
A28: 117 | B28: B2.1 | D28: LDV / bakkie | E28: km | F28: 30000 | H28: =F28*G28 -> 0
A30: 118 | B30: B2.2 | D30: Tipper truck | E30: hr | F30: 160 | H30: =F30*G30 -> 0
A32: 119 | B32: B2.3 | D32: TLB | E32: hr | F32: 240 | H32: =F32*G32 -> 0
A34: 120 | B34: B2.4 | D34: Excavator 5-8 ton | E34: hr | F34: 240 | H34: =F34*G34 -> 0
A36: 121 | B36: B2.5 | D36: Excavator 12-20 ton | E36: hr | F36: 160 | H36: =F36*G36 -> 0
A38: 122 | B38: B2.6 | D38: Road breaker / compressor | E38: hr | F38: 160 | H38: =F38*G38 -> 0
A40: 123 | B40: B2.7 | D40: Dewatering pump set | E40: hr | F40: 160 | H40: =F40*G40 -> 0
A42: 124 | B42: B2.8 | D42: Generator | E42: hr | F42: 160 | H42: =F42*G42 -> 0
A44: 125 | B44: B2.9 | D44: Plate compactor / rammer | E44: hr | F44: 160 | H44: =F44*G44 -> 0
A46: 126 | B46: B3 | D46: Materials
A48: 127 | B48: B3.1 | D48: Additional materials required by the Engineer based on their net cost | E48: Prov Sum | F48: 1 | G48: R150,000.00 | H48: =F48*G48 -> R 150 000.00
A50: 128 | B50: B3.2 | D50: Materials supplied under daywork - tendered mark-up on nett invoiced cost | E50: % | F50: R150,000.00 | H50: =F50*G50 -> 0
A52: 129 | B52: B4 | D52: Specialist Sub-Contractor Works
A54: 130 | B54: B4.1 | D54: Specialist Subcontractor Work required by tge Engineer based on their net cost | E54: Prov. Sum | F54: 1 | G54: R100,000.00 | H54: =F54*G54 -> R 100 000.00
A56: 131 | B56: B4.2 | D56: Specialist subcontract work under daywork - tendered mark-up on nett invoiced cost | E56: % | F56: R100,000.00 | H56: =F56*G56 -> 0
A73: TSF | B73: TOTAL SECTION B CARRIED TO SUMMARY | H73: =SUM(H5:H72) -> R250,000.00

Sheet C
B1: =ProjectTitle -> CONTRACT NO: VCW380/PWLPLM/24: MALUTI-A-PHOFUNG LOCAL MUNICIPALITY: APPOINTMENT OF A MAXIMUM OF FOUR (04) CONTRACTORS FOR THE REPAIRS OF POTABLE WATER LEAKS MALUTI-A-PHOFUNG LOCAL MUNICIPALITY IN PHUTHADITJABA | E1: SECTION C
E2: SITE CLEARANCE
A4: UID | B4: ITEM | C4: PAY REFS | D4: DESCRIPTION | E4: UNIT | F4: QTY | G4: RATE | H4: AMOUNT
A6: 132 | B6: C | D6: SECTION C : SITE CLEARANCE
A8: 133 | B8: C 1 | C8: SANS 1200 C | D8: SITE CLEARANCE
A10: 134 | B10: C 1.1 | C10: 8.2.1 | D10: Clear and grub Site, 3.0m wide strip | E10: m | F10: 5000 | H10: =F10*G10 -> 0
A12: 135 | B12: C 1.2 | C12: 8.2.2 | D12: Remove and grub large trees and tree stumps of girth Over and up to
A14: 136 | B14: C 1.2.1 | D14: 1 m to 2 m | E14: No. | F14: 6 | H14: =F14*G14 -> 0
A16: 137 | B16: C 1.2.2 | D16: 2 m to 3 m | E16: No. | F16: 3 | H16: =F16*G16 -> 0
A18: 138 | B18: C 1.2.3 | D18: 3 m upwards in 1 m steps | E18: No. | F18: 2 | H18: =F18*G18 -> 0
A20: 139 | B20: C 1.3 | C20: 8.2.4 | D20: Reclear working strip 3 m wide on written instruction from the Engineer | E20: m | F20: 1500 | H20: =F20*G20 -> 0
A22: 140 | B22: C 2 | C22: 8.2.5 | D22: REMOVAL OF FENCES, BOUNDARY WALLS, ETC
A24: 141 | B24: C 2.1 | D24: Taking down existing fences including neatly stacking on site designated by the Engineer
A26: 142 | B26: C 2.1.1 | D26: 1,2m High fence | E26: m | F26: 200 | H26: =F26*G26 -> 0
A28: 143 | B28: C 2.1.2 | D28: 1,8m High fence | E28: m | F28: 200 | H28: =F28*G28 -> 0
A30: 144 | B30: C 2.2 | C30: 8.2.6 | D30: Clear hedge, fence or both where not scheduled separately and spoil material
A32: 145 | B32: C 2.2.1 | D32: Hedge 1,5m high | E32: m | F32: 200 | H32: =F32*G32 -> 0
A34: 146 | B34: C 2.2.2 | D34: Hedge 1,5m high including fence 1,2m high | E34: m | F34: 200 | H34: =F34*G34 -> 0
A36: 147 | B36: C 2.3 | C36: 8.2.5 | D36: Taking down existing steel palisade fencing including neatly stacking on site designated by the Engineer
A38: 148 | B38: C 2.3.1 | D38: Steel palisade fence 1,8m high | E38: m | F38: 200 | H38: =F38*G38 -> 0
A40: 149 | B40: C 2.3.2 | D40: Steel palisade fence 2,4m high | E40: m | F40: 200 | H40: =F40*G40 -> 0
A42: 150 | B42: C 2.4 | C42: 8.2.5 | D42: Taking down existing precast concrete boundary walls including neatly stacking on site designated by the Engineer
A44: 151 | B44: C 2.4.1 | D44: Precast concrete boundary walls 1,2m high | E44: m | F44: 200 | H44: =F44*G44 -> 0
A46: 152 | B46: C 2.4.2 | D46: Precast concrete boundary walls 1,8m high | E46: m | F46: 200 | H46: =F46*G46 -> 0
A48: 153 | B48: C 2.4.3 | D48: Precast concrete boundary walls 2,4m high | E48: m | F48: 200 | H48: =F48*G48 -> 0
A50: 154 | B50: C 2.5 | C50: 8.2.5 | D50: Taking down existing brick boundary walls and spoil material
A52: 155 | B52: C 2.5.1 | D52: 115mm Thick brick boundary wall including pilasters, etc 1,2m high | E52: m | F52: 100 | H52: =F52*G52 -> 0
A54: 156 | B54: C 2.5.2 | D54: 115mm Thick brick boundary wall including pilasters, etc 1,8m high | E54: m | F54: 50 | H54: =F54*G54 -> 0
A56: 157 | B56: C 2.5.3 | D56: 230mm Thick brick boundary wall 1,2m high | E56: m | F56: 200 | H56: =F56*G56 -> 0
A58: 158 | B58: C 2.5.4 | D58: 230mm Thick brick boundary wall 1,8m high | E58: m | F58: 250 | H58: =F58*G58 -> 0
A60: 159 | B60: C 2.5.5 | D60: 345mm Thick brick boundary wall 1,2m high | E60: m | F60: 100 | H60: =F60*G60 -> 0
A62: 160 | B62: C 2.5.6 | D62: 345mm Thick brick boundary wall 1,8m high | E62: m | F62: 100 | H62: =F62*G62 -> 0
A64: 161 | B64: C 3 | D64: REINSTATEMENT OF FENCES, BOUNDARY, WALLS ETC.
A68: TCF | B68: TOTAL CARRIED FORWARD | H68: =SUM(H5:H67) -> 0
B69: =ProjectTitle -> CONTRACT NO: VCW380/PWLPLM/24: MALUTI-A-PHOFUNG LOCAL MUNICIPALITY: APPOINTMENT OF A MAXIMUM OF FOUR (04) CONTRACTORS FOR THE REPAIRS OF POTABLE WATER LEAKS MALUTI-A-PHOFUNG LOCAL MUNICIPALITY IN PHUTHADITJABA | E69: SECTION C
E70: SITE CLEARANCE
A72: UID | B72: ITEM | C72: PAY REFS | D72: DESCRIPTION | E72: UNIT | F72: QTY | G72: RATE | H72: AMOUNT
A73: TBF | B73: TOTAL BROUGHT FORWARD | H73: =H68 -> 0
A75: 162 | B75: C 3.1 | C75: PSC8 | D75: Take from stockpile on site existing fences and reinstate in similar position including replacing missing or damaged elements, etc
A77: 163 | B77: C 3.1.1 | D77: 1,2m High fence | E77: m | F77: 200 | H77: =F77*G77 -> 0
A79: 164 | B79: C 3.1.2 | D79: 1,8m High fence | E79: m | F79: 200 | H79: =F79*G79 -> 0
A81: 165 | B81: C 3.2 | C81: PSC8 | D81: Take from stockpile on site existing steel palisade fencing and reinstate in similar position including replacing missing or damaged elements, etc
A83: 166 | B83: C 3.2.1 | D83: Steel palisade fence 1,8m high | E83: m | F83: 200 | H83: =F83*G83 -> 0
A85: 167 | B85: C 3.2.2 | D85: Steel palisade fence 2,4m high | E85: m | F85: 200 | H85: =F85*G85 -> 0
A87: 168 | B87: C 3.3 | C87: PSC8 | D87: Take from stockpile on site existing precast concrete reinstate in similar position including replacing missing or damaged elements, etc
A89: 169 | B89: C 3.3.1 | D89: Precast concrete boundary walls 1,2m high | E89: m | F89: 200 | H89: =F89*G89 -> 0
A91: 170 | B91: C 3.3.2 | D91: Precast concrete boundary walls 1,8m high | E91: m | F91: 200 | H91: =F91*G91 -> 0
A93: 171 | B93: C 3.3.3 | D93: Precast concrete boundary walls 2,4m high | E93: m | F93: 200 | H93: =F93*G93 -> 0
A95: 172 | B95: C 3.4 | D95: Supply and deliver bricks for the reinstatement of brickwalls | E95: m² | F95: 1200 | H95: =F95*G95 -> 0
A97: 173 | B97: C 3.5 | D97: Reinstatement of brickswalls 115mm to 345mm | E97: m² | F97: 1200 | H97: =F97*G97 -> 0
A99: 174 | B99: C 4 | D99: Locate and test hydrants and valves on instruction by the Engineer irrespective of size and type | E99: No. | F99: 50 | H99: =F99*G99 -> 0
A140: TSF | B140: TOTAL SECTION C CARRIED TO SUMMARY | H140: =SUM(H73:H139) -> 0

Sheet D
B1: =ProjectTitle -> CONTRACT NO: VCW380/PWLPLM/24: MALUTI-A-PHOFUNG LOCAL MUNICIPALITY: APPOINTMENT OF A MAXIMUM OF FOUR (04) CONTRACTORS FOR THE REPAIRS OF POTABLE WATER LEAKS MALUTI-A-PHOFUNG LOCAL MUNICIPALITY IN PHUTHADITJABA | E1: SECTION D
E2: EARTHWORKS (PIPE TRENCHES
A4: UID | B4: ITEM | C4: PAY REFS | D4: DESCRIPTION | E4: UNIT | F4: QTY | G4: RATE | H4: AMOUNT
A6: 175 | B6: D | C6: SANS 1200 DB | D6: SECTION D: EARTHWORKS (PIPE TRENCHES
A8: 176 | B8: D.1 | C8: PSDB8.3.2 | D8: EXCAVATION
A10: 177 | B10: D.1.1 | D10: Excavate with machine in all materials for trenches, backfill, compact and dispose of surplus material, for pipes up to 400mm diameter, for the following depths:
A12: 178 | B12: D.1.1.1 | D12: Exceeding 0,0 m but not exceeding 1,0 m | E12: m | F12: 500 | H12: =F12*G12 -> 0
A14: 179 | B14: D.1.1.2 | D14: Exceeding 1,0 m but not exceeding 1,5 m | E14: m | F14: 500 | H14: =F14*G14 -> 0
A16: 180 | B16: D.1.1.3 | D16: Exceeding 1,5 m but not exceeding 2,0 m | E16: m | F16: 500 | H16: =F16*G16 -> 0
A18: 181 | B18: D.1.2 | D18: Excavate by hand in all materials for trenches, backfill, compact and dispose of surplus material, for pipes up to 400 mm diameter, for the following depths:
A20: 182 | B20: D.1.2.1 | D20: Exceeding 0,0 m but not exceeding 1,0 m | E20: m | F20: 50 | H20: =F20*G20 -> 0
A22: 183 | B22: D.1.2.2 | D22: Exceeding 1,0 m but not exceeding 1,5 m | E22: m | F22: 50 | H22: =F22*G22 -> 0
A24: 184 | B24: D.1.3 | D24: Backfill by hand including select, backfill, compact and dispose of all surplus material at authorized spoil site determined by the Contractor for main pipes with diameters up to 400 mm, for the following depths:
A26: 185 | B26: D.1.3.1 | D26: Exceeding 0,0 m but not exceeding 1,0 m | E26: m | F26: 50 | H26: =F26*G26 -> 0
A28: 186 | B28: D.1.3.2 | D28: Exceeding 1,0 m but not exceeding 1,5 m | E28: m | F28: 50 | H28: =F28*G28 -> 0
A30: 187 | B30: D.1.4 | D30: Excavate with machine in all materials for trenches, backfill, compact and dispose of surplus material, for pipes up to 250mm diameter, for the following depths:
A32: 188 | B32: D.1.4.1 | D32: Exceeding 0,0 m but not exceeding 1,0 m | E32: m | F32: 500 | H32: =F32*G32 -> 0
A34: 189 | B34: D.1.4.2 | D34: Exceeding 1,0 m but not exceeding 1,5 m | E34: m | F34: 500 | H34: =F34*G34 -> 0
A36: 190 | B36: D.1.4.3 | D36: Exceeding 1,5 m but not exceeding 2,0 m | E36: m | F36: 500 | H36: =F36*G36 -> 0
A38: 191 | B38: D.1.5 | D38: Excavate by hand in all materials for trenches, backfill, compact and dispose of surplus material, for pipes up to 250mm diameter, for the following depths:
A40: 192 | B40: D.1.5.1 | D40: Exceeding 0,0 m but not exceeding 1,0 m | E40: m | F40: 50 | H40: =F40*G40 -> 0
A42: 193 | B42: D.1.5.2 | D42: Exceeding 1,0 m but not exceeding 1,5 m | E42: m | F42: 50 | H42: =F42*G42 -> 0
A44: 194 | B44: D.1.6 | D44: Backfill by hand including select, backfill, compact and dispose of all surplus material at authorized spoil site determined by the Contractor for main pipes with diameters up to 250 mm, for the following depths:
A46: 195 | B46: D.1.6.1 | D46: Exceeding 0,0 m but not exceeding 1,0 m | E46: m | F46: 50 | H46: =F46*G46 -> 0
A48: 196 | B48: D.1.6.2 | D48: Exceeding 1,0 m but not exceeding 1,5 m | E48: m | F48: 50 | H48: =F48*G48 -> 0
A50: 197 | B50: D.1.7 | D50: Excavate with machine in all materials for trenches, backfill, compact and dispose of surplus material, for pipes up to 110 diameter, for the following depths:
A52: 198 | B52: D.1.7.1 | D52: Exceeding 0,0 m but not exceeding 1,0 m | E52: m | F52: 500 | H52: =F52*G52 -> 0
A56: TCF | B56: TOTAL CARRIED FORWARD | H56: =SUM(H5:H55) -> 0
B57: =ProjectTitle -> CONTRACT NO: VCW380/PWLPLM/24: MALUTI-A-PHOFUNG LOCAL MUNICIPALITY: APPOINTMENT OF A MAXIMUM OF FOUR (04) CONTRACTORS FOR THE REPAIRS OF POTABLE WATER LEAKS MALUTI-A-PHOFUNG LOCAL MUNICIPALITY IN PHUTHADITJABA | E57: SECTION D
E58: EARTHWORKS (PIPE TRENCHES
A60: UID | B60: ITEM | C60: PAY REFS | D60: DESCRIPTION | E60: UNIT | F60: QTY | G60: RATE | H60: AMOUNT
A61: TBF | B61: TOTAL BROUGHT FORWARD | H61: =H56 -> 0
A63: 199 | B63: D.1.7.2 | D63: Exceeding 1,0 m but not exceeding 1,5 m | E63: m | F63: 500 | H63: =F63*G63 -> 0
A65: 200 | B65: D.1.7.3 | D65: Exceeding 1,5 m but not exceeding 2,0 m | E65: m | F65: 500 | H65: =F65*G65 -> 0
A67: 201 | B67: D.1.8 | D67: Excavate by hand in all materials for trenches, backfill, compact and dispose of surplus material, for pipes up to 110mm diameter, for the following depths:
A69: 202 | B69: D.1.8.1 | D69: Exceeding 0,0 m but not exceeding 1,0 m | E69: m | F69: 50 | H69: =F69*G69 -> 0
A71: 203 | B71: D.1.8.2 | D71: Exceeding 1,0 m but not exceeding 1,5 m | E71: m | F71: 50 | H71: =F71*G71 -> 0
A73: 204 | B73: D.1.9 | D73: Backfill by hand including select, backfill, compact and dispose of all surplus material at authorized spoil site determined by the Contractor for main pipes with diameters up to 110 mm, for the following depths:
A75: 205 | B75: D.1.9.1 | D75: Exceeding 0,0 m but not exceeding 1,0 m | E75: m | F75: 500 | H75: =F75*G75 -> 0
A77: 206 | B77: D.1.9.2 | D77: Exceeding 1,0 m but not exceeding 1,5 m | E77: m | F77: 500 | H77: =F77*G77 -> 0
A79: 207 | B79: D.1.9.3 | C79: 8.3.2 | D79: Extra-over for PSDB 8.3.2 (a) & (d)
A81: 208 | B81: D.1.9.3.1 | D81: Intermediate excavation | E81: m³ | F81: 500 | H81: =F81*G81 -> 0
A83: 209 | B83: D.1.9.3.2 | D83: Hard rock excavation | E83: m³ | F83: 2500 | H83: =F83*G83 -> 0
A85: 210 | B85: D.1.9.3.3 | D85: Excavate and dispose of unsuitable material from trench bottom | E85: m³ | F85: 1500 | H85: =F85*G85 -> 0
A87: 211 | B87: D.1.9.3.4 | D87: Extra-over PS DB 8.3.2 (a) for temporary stockpiling of material | E87: m³ | F87: 300 | H87: =F87*G87 -> 0
A89: 212 | B89: D.1.9.3.5 | C89: PS DB 8.3.2(f) | D89: Extra-over item PS DB 8.3.2(a) for restricted excavation for pipe trenches in all materials and use for backfilling, fill or disposal | E89: m³ | F89: 150 | H89: =F89*G89 -> 0
A91: 213 | B91: D.1.9.3.6 | C91: PS DB 8.3.2(g) | D91: Hand excavation to expose and protect all existing services | E91: m³ | F91: 50 | H91: =F91*G91 -> 0
A93: 214 | B93: D.1.9.3.7 | C93: PS DM 8.3.12 | D93: Extra-over for overhaul on item PS DB 8.3.2(b) and (c) to spoil site determined by Contractor | E93: m³ | F93: 50 | H93: =F93*G93 -> 0
A95: 215 | B95: D.2 | C95: PS DB 8.3.3 | D95: EXCAVATION ANCILLARIES
A97: 216 | B97: D.2.1 | C97: 8.3.3.1 | D97: Make up deficiency in backfill material
A99: 217 | B99: D.2.1.1 | D99: from other ecessary excavations on site | E99: m³ | F99: 150 | H99: =F99*G99 -> 0
A101: 218 | B101: D.2.1.2 | D101: by importation from commercial sources G7 quality material | E101: m³ | F101: 900 | H101: =F101*G101 -> 0
A103: 219 | B103: D.2.1.3 | D103: By importation from designated borrow pits | E103: m³ | F103: 300 | H103: =F103*G103 -> 0
A105: 220 | B105: D.2.2 | C105: 8.3.3.3 | D105: Compaction in road reserves (300mm deep) | E105: m³ | F105: 300 | H105: =F105*G105 -> 0
A107: 221 | B107: D.2.3 | C107: PS DB 8.3.4 | D107: Shore a trench opposite structure or service
A109: 222 | B109: D.2.3.1 | D109: ESKOM Line | E109: m | F109: 200 | H109: =F109*G109 -> 0
A111: 223 | B111: D.2.3.2 | D111: Sewer Line | E111: m | F111: 200 | H111: =F111*G111 -> 0
A113: 224 | B113: D.2.3.3 | D113: Water Line | E113: m | F113: 200 | H113: =F113*G113 -> 0
A115: 225 | B115: D.2.3.4 | D115: TELKOM & Fibre Lines | E115: m | F115: 200 | H115: =F115*G115 -> 0
A122: TCF | B122: TOTAL CARRIED FORWARD | H122: =SUM(H61:H121) -> 0
B123: =ProjectTitle -> CONTRACT NO: VCW380/PWLPLM/24: MALUTI-A-PHOFUNG LOCAL MUNICIPALITY: APPOINTMENT OF A MAXIMUM OF FOUR (04) CONTRACTORS FOR THE REPAIRS OF POTABLE WATER LEAKS MALUTI-A-PHOFUNG LOCAL MUNICIPALITY IN PHUTHADITJABA | E123: SECTION D
E124: EARTHWORKS (PIPE TRENCHES
A126: UID | B126: ITEM | C126: PAY REFS | D126: DESCRIPTION | E126: UNIT | F126: QTY | G126: RATE | H126: AMOUNT
A127: TBF | B127: TOTAL BROUGHT FORWARD | H127: =H122 -> 0
A129: 226 | B129: D.3 | C129: 8.3.5(a) | D129: EXISTING SERVICES
A131: 227 | B131: D.3.1 | D131: Crossing and protecting services that intersect a trench
A133: 228 | B133: D.3.1.1 | D133: Underground electrical cables | E133: No. | F133: 50 | H133: =F133*G133 -> 0
A135: 229 | B135: D.3.1.2 | D135: Overhead electrical cables | E135: No. | F135: 50 | H135: =F135*G135 -> 0
A137: 230 | B137: D.3.1.3 | D137: Underground Telkom cables | E137: No. | F137: 50 | H137: =F137*G137 -> 0
A139: 231 | B139: D.3.1.4 | D139: Overhead Telkom cables | E139: No. | F139: 50 | H139: =F139*G139 -> 0
A141: 232 | B141: D.3.1.5 | D141: Water main not exceeding Ø 300mm | E141: No. | F141: 100 | H141: =F141*G141 -> 0
A143: 233 | B143: D.3.1.6 | D143: Water main exceeding Ø 300mm | E143: No. | F143: 50 | H143: =F143*G143 -> 0
A145: 234 | B145: D.3.1.7 | D145: Sewer main not excedding Ø 300mm | E145: No. | F145: 100 | H145: =F145*G145 -> 0
A147: 235 | B147: D.3.1.8 | D147: Sewer main exceeding Ø 300mm | E147: No. | F147: 50 | H147: =F147*G147 -> 0
A149: 236 | B149: D.3.1.9 | D149: Stormwater pipe not exceeding Ø 600mm | E149: No. | F149: 10 | H149: =F149*G149 -> 0
A151: 237 | B151: D.3.1.10 | D151: Stormwater pipe exceeding Ø 600mm | E151: No. | F151: 10 | H151: =F151*G151 -> 0
A153: 238 | B153: D.3.2 | C153: 8.3.5(b) | D153: Working along and protecting services that adjoin a trench
A155: 239 | B155: D.3.2.1 | D155: Underground electrical cables | E155: m | F155: 50 | H155: =F155*G155 -> 0
A157: 240 | B157: D.3.2.2 | D157: Overhead electrical pole | E157: m | F157: 50 | H157: =F157*G157 -> 0
A159: 241 | B159: D.3.2.3 | D159: Underground Telkom cables | E159: m | F159: 50 | H159: =F159*G159 -> 0
A161: 242 | B161: D.3.2.4 | D161: Overhead Telkom cables | E161: m | F161: 50 | H161: =F161*G161 -> 0
A163: 243 | B163: D.3.2.5 | D163: Water main not exceeding Ø 300mm | E163: m | F163: 100 | H163: =F163*G163 -> 0
A165: 244 | B165: D.3.2.6 | D165: Water main exceeding Ø 300mm | E165: m | F165: 50 | H165: =F165*G165 -> 0
A167: 245 | B167: D.3.2.7 | D167: Sewer main not excedding Ø 300mm | E167: m | F167: 100 | H167: =F167*G167 -> 0
A169: 246 | B169: D.3.2.8 | D169: Sewer main exceeding Ø 300mm | E169: m | F169: 50 | H169: =F169*G169 -> 0
A171: 247 | B171: D.3.2.9 | D171: Stormwater pipe not exceeding Ø 600mm | E171: m | F171: 100 | H171: =F171*G171 -> 0
A173: 248 | B173: D.3.2.10 | D173: Stormwater pipe exceeding Ø 600mm | E173: m | F173: 50 | H173: =F173*G173 -> 0
A175: 249 | B175: D.4 | D175: Crossing of Main Roads with water pipe line by means of Directional Drilling up to Ø 160 mm | E175: Prov Sum | F175: 1 | G175: R300,000.00 | H175: =F175*G175 -> R 300 000.00
A177: 250 | B177: D.4.1 | D177: Attendance and profit on Item D4 | E177: % | F177: R300,000.00 | H177: =F177*G177 -> 0
A179: 251 | B179: D.5 | D179: Removal and relaying of existing brick paving | E179: m² | F179: 50 | H179: =F179*G179 -> 0
A181: 252 | B181: D.6 | D181: Removal and replacement of concrete paving | E181: m² | F181: 50 | H181: =F181*G181 -> 0
A183: 253 | B183: D.7 | D183: Remove and reinstate existing grass areas | E183: m² | F183: 50 | H183: =F183*G183 -> 0
A185: 254 | B185: D.8 | D185: Remove and reinstate existing gardens | E185: m² | F185: 50 | H185: =F185*G185 -> 0
A187: 255 | B187: D.9 | C187: 8.3.6 | D187: FINISHING
A189: 256 | B189: D.9.1 | C189: 8.3.6.1 | D189: Reinstate road surfaces complete with all layers
A191: 257 | B191: D.9.1.1 | D191: 150mm Thick G9 lower selected layer | E191: m³ | F191: 250 | H191: =F191*G191 -> 0
A193: 258 | B193: D.9.1.2 | D193: 150mm Thick G7 upper selected layer | E193: m³ | F193: 250 | H193: =F193*G193 -> 0
A199: TCF | B199: TOTAL CARRIED FORWARD | H199: =SUM(H127:H198) -> R300,000.00
B200: =ProjectTitle -> CONTRACT NO: VCW380/PWLPLM/24: MALUTI-A-PHOFUNG LOCAL MUNICIPALITY: APPOINTMENT OF A MAXIMUM OF FOUR (04) CONTRACTORS FOR THE REPAIRS OF POTABLE WATER LEAKS MALUTI-A-PHOFUNG LOCAL MUNICIPALITY IN PHUTHADITJABA | E200: SECTION D
E201: EARTHWORKS (PIPE TRENCHES
A203: UID | B203: ITEM | C203: PAY REFS | D203: DESCRIPTION | E203: UNIT | F203: QTY | G203: RATE | H203: AMOUNT
A204: TBF | B204: TOTAL BROUGHT FORWARD | H204: =H199 -> R300,000.00
A206: 259 | B206: D.9.1.3 | D206: 150mm Thick G5 subbase course | E206: m³ | F206: 250 | H206: =F206*G206 -> 0
A208: 260 | B208: D.9.1.4 | D208: 150mm Thick G4 base course | E208: m³ | F208: 250 | H208: =F208*G208 -> 0
A210: 261 | B210: D.9.1.5 | D210: Asphalt 30 mm thick including prime and tack coat | E210: m² | F210: 50 | H210: =F210*G210 -> 0
A212: 262 | B212: D.9.1.6 | D212: 60mm thick (Existing pavers) | E212: m² | F212: 50 | H212: =F212*G212 -> 0
A214: 263 | B214: D.9.1.7 | D214: 60mm thick (Light grey, 25MPa interlocker pavers) | E214: m² | F214: 50 | H214: =F214*G214 -> 0
A216: 264 | B216: D.9.1.8 | D216: 25MPa Concrete, 150mm thick with mesh ref 193 | E216: m² | F216: 50 | H216: =F216*G216 -> 0
A218: 265 | B218: D.9.1.9 | D218: 13mm Stone, 100m thick layer | E218: m² | F218: 50 | H218: =F218*G218 -> 0
A220: 266 | B220: D.9.2 | D220: Extra-over DB 8.3.6.1 for imported material for:
A222: 267 | B222: D.9.2.1 | D222: 150mm Thick G7 upper selected layer | E222: m³ | F222: 125 | H222: =F222*G222 -> 0
A224: 268 | B224: D.9.2.2 | D224: 150mm Thick G5 subbase course | E224: m³ | F224: 125 | H224: =F224*G224 -> 0
A226: 269 | B226: D.9.2.3 | D226: 150mm Thick G4 base course | E226: m³ | F226: 125 | H226: =F226*G226 -> 0
A228: 270 | B228: D.9.2.4 | D228: Asphalt 30 mm thick | E228: m² | F228: 25 | H228: =F228*G228 -> 0
A230: 271 | B230: D.9.2.5 | D230: 60mm pavers | E230: m² | F230: 25 | H230: =F230*G230 -> 0
A232: 272 | B232: D.9.2.6 | D232: 25MPa Concrete, 150mm thick with mesh ref 193 | E232: m² | F232: 25 | H232: =F232*G232 -> 0
A234: 273 | B234: D.9.2.7 | D234: 13mm Stone, 100m thick layer | E234: m² | F234: 25 | H234: =F234*G234 -> 0
A236: 274 | B236: D.9.3 | C236: 8.3.6.1(d) | D236: Cut Bitumen Layer
A238: 275 | B238: D.9.3.1 | D238: 30mm Asphalt | E238: m | F238: 1000 | H238: =F238*G238 -> 0
A240: 276 | B240: D.9.4 | D240: Trim, Shape And Compact Sidewalks | E240: m² | F240: 500 | H240: =F240*G240 -> 0
A277: TSF | B277: TOTAL SECTION D CARRIED TO SUMMARY | H277: =SUM(H204:H276) -> R300,000.00

Sheet E
B1: =ProjectTitle -> CONTRACT NO: VCW380/PWLPLM/24: MALUTI-A-PHOFUNG LOCAL MUNICIPALITY: APPOINTMENT OF A MAXIMUM OF FOUR (04) CONTRACTORS FOR THE REPAIRS OF POTABLE WATER LEAKS MALUTI-A-PHOFUNG LOCAL MUNICIPALITY IN PHUTHADITJABA | E1: SECTION E
E2: BEDDING (PIPES)
A4: UID | B4: ITEM | C4: PAY REFS | D4: DESCRIPTION | E4: UNIT | F4: QTY | G4: RATE | H4: AMOUNT
A6: 277 | B6: E | C6: SANS 1200 LB | D6: SECTION E: BEDDING (PIPES)
A8: 278 | B8: E1 | C8: 8.2.2.3 | D8: Provision of bedding material compacted to 93% MDD (100% for sand) with material from commercial sources (including overhaul)
A10: 279 | B10: E1.1 | D10: Selected granular material | E10: m³ | F10: 1000 | H10: =F10*G10 -> 0
A12: 280 | B12: E1.2 | D12: Selected fill material | E12: m³ | F12: 1000 | H12: =F12*G12 -> 0
A14: 281 | B14: E2 | C14: 8.2.1 | D14: Provision of bedding material compacted to 93% MDD (100% for sand) with material from trench excavations (including overhaul)
A16: 282 | B16: E2.1 | D16: Selected granular material | E16: m³ | F16: 200 | H16: =F16*G16 -> 0
A18: 283 | B18: E2.2 | D18: Selected fill material | E18: m³ | F18: 200 | H18: =F18*G18 -> 0
A20: 284 | B20: E3 | D20: 19mm Crushed stone | E20: m² | F20: 100 | H20: =F20*G20 -> 0
A22: 285 | B22: E4 | C22: PSLB8.2.7 | D22: Bidim Geotextile | E22: m³ | F22: 100 | H22: =F22*G22 -> 0
A24: 286 | B24: E5 | C24: PSLB8.2.6 | D24: Extra over for items E1.2 to E2.2 for bedding, cradle and blanket stabilized with 3% cement. | E24: m³ | F24: 50 | H24: =F24*G24 -> 0
A26: 287 | B26: E6 | D26: Encasing of pipes in concrete
A28: 288 | B28: E6.1 | D28: 25 MPa/19 mm | E28: m³ | F28: 30 | H28: =F28*G28 -> 0
A74: TSF | B74: TOTAL SECTION E CARRIED TO SUMMARY | H74: =SUM(H5:H73) -> 0

Sheet F
B1: =ProjectTitle -> CONTRACT NO: VCW380/PWLPLM/24: MALUTI-A-PHOFUNG LOCAL MUNICIPALITY: APPOINTMENT OF A MAXIMUM OF FOUR (04) CONTRACTORS FOR THE REPAIRS OF POTABLE WATER LEAKS MALUTI-A-PHOFUNG LOCAL MUNICIPALITY IN PHUTHADITJABA | E1: SECTION F
E2: MEDIUM PRESSURE PIPELINES
A4: UID | B4: ITEM | C4: PAY REFS | D4: DESCRIPTION | E4: UNIT | F4: QTY | G4: RATE | H4: AMOUNT
A6: 289 | B6: F | C6: SANS 1200 L | D6: SECTION F: MEDIUM PRESSURE PIPELINES
A8: 290 | B8: F1 | C8: 8.2.1 | D8: Supply (include materials), lay and bed on Class B bedding according to SABS 1200 LB drawing LB-2, joint including cutting of pipes to length where required, testing and disinfecting, with necessary couplings.
A10: 291 | B10: F1.1 | D10: 63mm diameter uPVC Class 9 | E10: m | F10: 100 | H10: =F10*G10 -> 0
A12: 292 | B12: F1.2 | D12: 63mm diameter uPVC Class 12 | E12: m | F12: 100 | H12: =F12*G12 -> 0
A14: 293 | B14: F1.3 | D14: 63mm diameter uPVC Class 16 | E14: m | F14: 100 | H14: =F14*G14 -> 0
A16: 294 | B16: F1.4 | D16: 75mm diameter uPVC Class 9 | E16: m | F16: 100 | H16: =F16*G16 -> 0
A18: 295 | B18: F1.5 | D18: 75mm diameter uPVC Class 12 | E18: m | F18: 100 | H18: =F18*G18 -> 0
A20: 296 | B20: F1.6 | D20: 75mm diameter uPVC Class 16 | E20: m | F20: 100 | H20: =F20*G20 -> 0
A22: 297 | B22: F1.7 | D22: 90mm diameter uPVC Class 9 | E22: m | F22: 100 | H22: =F22*G22 -> 0
A24: 298 | B24: F1.8 | D24: 90mm diameter uPVC Class 12 | E24: m | F24: 100 | H24: =F24*G24 -> 0
A26: 299 | B26: F1.9 | D26: 90mm diameter uPVC Class 16 | E26: m | F26: 100 | H26: =F26*G26 -> 0
A28: 300 | B28: F1.10 | D28: 110mm diameter uPVC Class 9 | E28: m | F28: 100 | H28: =F28*G28 -> 0
A30: 301 | B30: F1.11 | D30: 110mm diameter uPVC Class 12 | E30: m | F30: 100 | H30: =F30*G30 -> 0
A32: 302 | B32: F1.12 | D32: 110mm diameter uPVC Class 16 | E32: m | F32: 100 | H32: =F32*G32 -> 0
A34: 303 | B34: F1.13 | D34: 160mm diameter uPVC Class 9 | E34: m | F34: 100 | H34: =F34*G34 -> 0
A36: 304 | B36: F1.14 | D36: 160mm diameter uPVC Class 12 | E36: m | F36: 100 | H36: =F36*G36 -> 0
A38: 305 | B38: F1.15 | D38: 160mm diameter uPVC Class 16 | E38: m | F38: 100 | H38: =F38*G38 -> 0
A40: 306 | B40: F1.16 | D40: 200mm diameter uPVC Class 9 | E40: m | F40: 100 | H40: =F40*G40 -> 0
A42: 307 | B42: F1.17 | D42: 200mm diameter uPVC Class 12 | E42: m | F42: 100 | H42: =F42*G42 -> 0
A44: 308 | B44: F1.18 | D44: 200mm diameter uPVC Class 16 | E44: m | F44: 100 | H44: =F44*G44 -> 0
A46: 309 | B46: F1.19 | D46: 250mm diameter uPVC Class 9 | E46: m | F46: 100 | H46: =F46*G46 -> 0
A48: 310 | B48: F1.20 | D48: 250mm diameter uPVC Class 12 | E48: m | F48: 100 | H48: =F48*G48 -> 0
A50: 311 | B50: F1.21 | D50: 250mm diameter uPVC Class 16 | E50: m | F50: 100 | H50: =F50*G50 -> 0
A52: 312 | B52: F1.22 | D52: 315mm diameter uPVC Class 9 | E52: m | F52: 100 | H52: =F52*G52 -> 0
A54: 313 | B54: F1.23 | D54: 315mm diameter uPVC Class 12 | E54: m | F54: 100 | H54: =F54*G54 -> 0
A56: 314 | B56: F1.24 | D56: 315mm diameter uPVC Class 16 | E56: m | F56: 100 | H56: =F56*G56 -> 0
A58: 315 | B58: F1.25 | D58: 355mm diameter uPVC Class 9 | E58: m | F58: 100 | H58: =F58*G58 -> 0
A60: 316 | B60: F1.26 | D60: 355mm diameter uPVC Class 12 | E60: m | F60: 100 | H60: =F60*G60 -> 0
A62: 317 | B62: F1.27 | D62: 355mm diameter uPVC Class 16 | E62: m | F62: 100 | H62: =F62*G62 -> 0
A64: 318 | B64: F1.28 | D64: 400mm diameter uPVC Class 9 | E64: m | F64: 100 | H64: =F64*G64 -> 0
A66: 319 | B66: F1.29 | D66: 400mm diameter uPVC Class 12 | E66: m | F66: 100 | H66: =F66*G66 -> 0
A68: 320 | B68: F1.30 | D68: 400mm diameter uPVC Class 16 | E68: m | F68: 100 | H68: =F68*G68 -> 0
A76: TCF | B76: TOTAL CARRIED FORWARD | H76: =SUM(H5:H75) -> 0
B77: =ProjectTitle -> CONTRACT NO: VCW380/PWLPLM/24: MALUTI-A-PHOFUNG LOCAL MUNICIPALITY: APPOINTMENT OF A MAXIMUM OF FOUR (04) CONTRACTORS FOR THE REPAIRS OF POTABLE WATER LEAKS MALUTI-A-PHOFUNG LOCAL MUNICIPALITY IN PHUTHADITJABA | E77: SECTION F
E78: MEDIUM PRESSURE PIPELINES
A80: UID | B80: ITEM | C80: PAY REFS | D80: DESCRIPTION | E80: UNIT | F80: QTY | G80: RATE | H80: AMOUNT
A81: TBF | B81: TOTAL BROUGHT FORWARD | H81: =H76 -> 0
A83: 321 | B83: F2 | C83: 8.2.2 | D83: SPECIALS AND FITTINGS: Supply (include materials), lay and bed on Class B bedding according to SABS 1200 LB drawing LB-2, joint including cutting of pipe to length where required, testing an disinfecting, Extra- over item 8.2.1 above for specials and fittings complete with necessary couplings:
A85: 322 | B85: F2.1 | D85: uPVC bends for uPVC pipes:
A87: 323 | B87: F2.1.1 | D87: 63mm diameter uPVC Class 16 - 11.25º | E87: No. | F87: 10 | H87: =F87*G87 -> 0
A89: 324 | B89: F2.1.2 | D89: 63mm diameter uPVC Class 16 - 22.5º | E89: No. | F89: 10 | H89: =F89*G89 -> 0
A91: 325 | B91: F2.1.3 | D91: 63mm diameter uPVC Class 16 - 45º | E91: No. | F91: 10 | H91: =F91*G91 -> 0
A93: 326 | B93: F2.1.4 | D93: 63mm diameter uPVC Class 16 - 90º | E93: No. | F93: 10 | H93: =F93*G93 -> 0
A95: 327 | B95: F2.1.5 | D95: 75mm diameter uPVC Class 16 - 11.25º | E95: No. | F95: 10 | H95: =F95*G95 -> 0
A97: 328 | B97: F2.1.6 | D97: 75mm diameter uPVC Class 16 - 22.5º | E97: No. | F97: 10 | H97: =F97*G97 -> 0
A99: 329 | B99: F2.1.7 | D99: 75mm diameter uPVC Class 16 - 45º | E99: No. | F99: 10 | H99: =F99*G99 -> 0
A101: 330 | B101: F2.1.8 | D101: 75mm diameter uPVC Class 16 - 90º | E101: No. | F101: 10 | H101: =F101*G101 -> 0
A103: 331 | B103: F2.1.9 | D103: 90mm diameter uPVC Class 16 - 11.25º | E103: No. | F103: 10 | H103: =F103*G103 -> 0
A105: 332 | B105: F2.1.10 | D105: 90mm diameter uPVC Class 16 - 22.5º | E105: No. | F105: 10 | H105: =F105*G105 -> 0
A107: 333 | B107: F2.1.11 | D107: 90mm diameter uPVC Class 16 - 45º | E107: No. | F107: 10 | H107: =F107*G107 -> 0
A109: 334 | B109: F2.1.12 | D109: 90mm diameter uPVC Class 16 - 90º | E109: No. | F109: 10 | H109: =F109*G109 -> 0
A111: 335 | B111: F2.1.13 | D111: 110mm diameter uPVC Class 16 - 11.25º | E111: No. | F111: 10 | H111: =F111*G111 -> 0
A113: 336 | B113: F2.1.14 | D113: 110mm diameter uPVC Class 16 - 22.5º | E113: No. | F113: 10 | H113: =F113*G113 -> 0
A115: 337 | B115: F2.1.15 | D115: 110mm diameter uPVC Class 16 - 45º | E115: No. | F115: 10 | H115: =F115*G115 -> 0
A117: 338 | B117: F2.1.16 | D117: 110mm diameter uPVC Class 16 - 90º | E117: No. | F117: 10 | H117: =F117*G117 -> 0
A119: 339 | B119: F2.1.17 | D119: 160mm diameter uPVC Class 16 - 11.25º | E119: No. | F119: 10 | H119: =F119*G119 -> 0
A121: 340 | B121: F2.1.18 | D121: 160mm diameter uPVC Class 16 - 22.5º | E121: No. | F121: 10 | H121: =F121*G121 -> 0
A123: 341 | B123: F2.1.19 | D123: 160mm diameter uPVC Class 16 - 45º | E123: No. | F123: 10 | H123: =F123*G123 -> 0
A125: 342 | B125: F2.1.20 | D125: 160mm diameter uPVC Class 16 - 90º | E125: No. | F125: 10 | H125: =F125*G125 -> 0
A127: 343 | B127: F2.1.21 | D127: 200mm diameter uPVC Class 16 - 11.25º | E127: No. | F127: 10 | H127: =F127*G127 -> 0
A129: 344 | B129: F2.1.22 | D129: 200mm diameter uPVC Class 16 - 22.5º | E129: No. | F129: 10 | H129: =F129*G129 -> 0
A131: 345 | B131: F2.1.23 | D131: 200mm diameter uPVC Class 16 - 45º | E131: No. | F131: 10 | H131: =F131*G131 -> 0
A133: 346 | B133: F2.1.24 | D133: 200mm diameter uPVC Class 16 - 90º | E133: No. | F133: 10 | H133: =F133*G133 -> 0
A135: 347 | B135: F2.1.25 | D135: 250mm diameter uPVC Class 16 - 11.25º | E135: No. | F135: 10 | H135: =F135*G135 -> 0
A137: 348 | B137: F2.1.26 | D137: 250mm diameter uPVC Class 16 - 22.5º | E137: No. | F137: 10 | H137: =F137*G137 -> 0
A139: 349 | B139: F2.1.27 | D139: 250mm diameter uPVC Class 16 - 45º | E139: No. | F139: 10 | H139: =F139*G139 -> 0
A141: 350 | B141: F2.1.28 | D141: 250mm diameter uPVC Class 16 - 90º | E141: No. | F141: 10 | H141: =F141*G141 -> 0
A143: 351 | B143: F2.1.29 | D143: 315mm diameter uPVC Class 16 - 11.25º | E143: No. | F143: 10 | H143: =F143*G143 -> 0
A150: TCF | B150: TOTAL CARRIED FORWARD | H150: =SUM(H81:H149) -> 0
B151: =ProjectTitle -> CONTRACT NO: VCW380/PWLPLM/24: MALUTI-A-PHOFUNG LOCAL MUNICIPALITY: APPOINTMENT OF A MAXIMUM OF FOUR (04) CONTRACTORS FOR THE REPAIRS OF POTABLE WATER LEAKS MALUTI-A-PHOFUNG LOCAL MUNICIPALITY IN PHUTHADITJABA | E151: SECTION F
E152: MEDIUM PRESSURE PIPELINES
A154: UID | B154: ITEM | C154: PAY REFS | D154: DESCRIPTION | E154: UNIT | F154: QTY | G154: RATE | H154: AMOUNT
A155: TBF | B155: TOTAL BROUGHT FORWARD | H155: =H150 -> 0
A157: 352 | B157: F2.1.30 | D157: 315mm diameter uPVC Class 16 - 22.5º | E157: No. | F157: 10 | H157: =F157*G157 -> 0
A159: 353 | B159: F2.1.31 | D159: 315mm diameter uPVC Class 16 - 45º | E159: No. | F159: 10 | H159: =F159*G159 -> 0
A161: 354 | B161: F2.1.32 | D161: 315mm diameter uPVC Class 16 - 90º | E161: No. | F161: 10 | H161: =F161*G161 -> 0
A163: 355 | B163: F2.1.33 | D163: 355mm diameter uPVC Class 16 - 11.25º | E163: No. | F163: 10 | H163: =F163*G163 -> 0
A165: 356 | B165: F2.1.34 | D165: 355mm diameter uPVC Class 16 - 22.5º | E165: No. | F165: 10 | H165: =F165*G165 -> 0
A167: 357 | B167: F2.1.35 | D167: 355mm diameter uPVC Class 16 - 45º | E167: No. | F167: 10 | H167: =F167*G167 -> 0
A169: 358 | B169: F2.1.36 | D169: 355mm diameter uPVC Class 16 - 90º | E169: No. | F169: 10 | H169: =F169*G169 -> 0
A171: 359 | B171: F2.1.37 | D171: 400mm diameter uPVC Class 16 - 11.25º | E171: No. | F171: 10 | H171: =F171*G171 -> 0
A173: 360 | B173: F2.1.38 | D173: 400mm diameter uPVC Class 16 - 22.5º | E173: No. | F173: 10 | H173: =F173*G173 -> 0
A175: 361 | B175: F2.1.39 | D175: 400mm diameter uPVC Class 16 - 45º | E175: No. | F175: 10 | H175: =F175*G175 -> 0
A177: 362 | B177: F2.1.40 | D177: 400mm diameter uPVC Class 16 - 90º | E177: No. | F177: 10 | H177: =F177*G177 -> 0
A179: 363 | B179: F2.2 | C179: 8.2.2 | D179: Cast Iron Unequal T-pieces (Class 16)
A181: 364 | B181: F2.2.1 | D181: 75mm x 63mm diameter for uPVC Pipes | E181: No | F181: 10 | H181: =F181*G181 -> 0
A183: 365 | B183: F2.2.2 | D183: 90mm x 63mm diameter for uPVC Pipes | E183: No | F183: 10 | H183: =F183*G183 -> 0
A185: 366 | B185: F2.2.3 | D185: 90mm x 75mm diameter for uPVC Pipes | E185: No | F185: 10 | H185: =F185*G185 -> 0
A187: 367 | B187: F2.2.4 | D187: 110mm x 63mm diameter for uPVC Pipes | E187: No | F187: 10 | H187: =F187*G187 -> 0
A189: 368 | B189: F2.2.5 | D189: 110mm x 75mm diameter for uPVC Pipes | E189: No | F189: 10 | H189: =F189*G189 -> 0
A191: 369 | B191: F2.2.6 | D191: 110mm x 90mm diameter for uPVC Pipes | E191: No | F191: 10 | H191: =F191*G191 -> 0
A193: 370 | B193: F2.2.7 | D193: 160mm x 63mm diameter for uPVC Pipes | E193: No | F193: 10 | H193: =F193*G193 -> 0
A195: 371 | B195: F2.2.8 | D195: 160mm x 75mm diameter for uPVC Pipes | E195: No | F195: 10 | H195: =F195*G195 -> 0
A197: 372 | B197: F2.2.9 | D197: 160mm x 90mm diameter for uPVC Pipes | E197: No | F197: 10 | H197: =F197*G197 -> 0
A199: 373 | B199: F2.2.10 | D199: 160mm x 110mm diameter for uPVC Pipes | E199: No | F199: 10 | H199: =F199*G199 -> 0
A201: 374 | B201: F2.2.11 | D201: 200mm x 75mm diameter for uPVC Pipes | E201: No | F201: 10 | H201: =F201*G201 -> 0
A203: 375 | B203: F2.2.12 | D203: 200mm x 90mm diameter for uPVC Pipes | E203: No | F203: 10 | H203: =F203*G203 -> 0
A205: 376 | B205: F2.2.13 | D205: 200mm x 110mm diameter for uPVC Pipes | E205: No | F205: 10 | H205: =F205*G205 -> 0
A207: 377 | B207: F2.2.14 | D207: 200mm x 160mm diameter for uPVC Pipes | E207: No | F207: 10 | H207: =F207*G207 -> 0
A209: 378 | B209: F2.2.15 | D209: 250mm x 90mm diameter for uPVC Pipes | E209: No | F209: 10 | H209: =F209*G209 -> 0
A211: 379 | B211: F2.2.16 | D211: 250mm x 110mm diameter for uPVC Pipes | E211: No | F211: 10 | H211: =F211*G211 -> 0
A213: 380 | B213: F2.2.17 | D213: 250mm x 160mm diameter for uPVC Pipes | E213: No | F213: 10 | H213: =F213*G213 -> 0
A215: 381 | B215: F2.2.18 | D215: 250mm x 200mm diameter for uPVC Pipes | E215: No | F215: 10 | H215: =F215*G215 -> 0
A217: 382 | B217: F2.2.19 | D217: 315mm x 110mm diameter for uPVC Pipes | E217: No | F217: 10 | H217: =F217*G217 -> 0
A219: 383 | B219: F2.2.20 | D219: 315mm x 160mm diameter for uPVC Pipes | E219: No | F219: 10 | H219: =F219*G219 -> 0
A221: 384 | B221: F2.2.21 | D221: 315mm x 200mm diameter for uPVC Pipes | E221: No | F221: 10 | H221: =F221*G221 -> 0
A223: 385 | B223: F2.2.22 | D223: 315mm x 250mm diameter for uPVC Pipes | E223: No | F223: 10 | H223: =F223*G223 -> 0
A230: TCF | B230: TOTAL CARRIED FORWARD | H230: =SUM(H155:H229) -> 0
B231: =ProjectTitle -> CONTRACT NO: VCW380/PWLPLM/24: MALUTI-A-PHOFUNG LOCAL MUNICIPALITY: APPOINTMENT OF A MAXIMUM OF FOUR (04) CONTRACTORS FOR THE REPAIRS OF POTABLE WATER LEAKS MALUTI-A-PHOFUNG LOCAL MUNICIPALITY IN PHUTHADITJABA | E231: SECTION F
E232: MEDIUM PRESSURE PIPELINES
A234: UID | B234: ITEM | C234: PAY REFS | D234: DESCRIPTION | E234: UNIT | F234: QTY | G234: RATE | H234: AMOUNT
A235: TBF | B235: TOTAL BROUGHT FORWARD | H235: =H230 -> 0
A237: 386 | B237: F2.2.23 | D237: 355mm x 160mm diameter for uPVC Pipes | E237: No | F237: 10 | H237: =F237*G237 -> 0
A239: 387 | B239: F2.2.24 | D239: 355mm x 200mm diameter for uPVC Pipes | E239: No | F239: 10 | H239: =F239*G239 -> 0
A241: 388 | B241: F2.2.25 | D241: 355mm x 250mm diameter for uPVC Pipes | E241: No | F241: 10 | H241: =F241*G241 -> 0
A243: 389 | B243: F2.2.26 | D243: 355mm x 315mm diameter for uPVC Pipes | E243: No | F243: 10 | H243: =F243*G243 -> 0
A245: 390 | B245: F2.2.27 | D245: 400mm x 200mm diameter for uPVC Pipes | E245: No | F245: 10 | H245: =F245*G245 -> 0
A247: 391 | B247: F2.2.28 | D247: 400mm x 250mm diameter for uPVC Pipes | E247: No | F247: 10 | H247: =F247*G247 -> 0
A249: 392 | B249: F2.2.29 | D249: 400mm x 315mm diameter for uPVC Pipes | E249: No | F249: 10 | H249: =F249*G249 -> 0
A251: 393 | B251: F2.2.30 | D251: 400mm x 355mm diameter for uPVC Pipes | E251: No | F251: 10 | H251: =F251*G251 -> 0
A253: 394 | B253: F2.3 | C253: 8.2.2 | D253: Cast Iron T-pieces (Class 16)
A255: 395 | B255: F2.3.1 | D255: 63mm x 63mm diameter for uPVC Pipes | E255: No | F255: 10 | H255: =F255*G255 -> 0
A257: 396 | B257: F2.3.2 | D257: 75mm x 75mm diameter uPVC Pipes | E257: No | F257: 10 | H257: =F257*G257 -> 0
A259: 397 | B259: F2.3.3 | D259: 90mm x 90mm diameter uPVC Pipes | E259: No | F259: 10 | H259: =F259*G259 -> 0
A261: 398 | B261: F2.3.4 | D261: 110mm x 110mm diameter uPVC Pipes | E261: No | F261: 10 | H261: =F261*G261 -> 0
A263: 399 | B263: F2.3.5 | D263: 160mm x 160mm diameter uPVC Pipes | E263: No | F263: 10 | H263: =F263*G263 -> 0
A265: 400 | B265: F2.3.6 | D265: 200mm x 200mm diameter uPVC Pipes | E265: No | F265: 10 | H265: =F265*G265 -> 0
A267: 401 | B267: F2.3.7 | D267: 250mm x 250mm diameter uPVC Pipes | E267: No | F267: 10 | H267: =F267*G267 -> 0
A269: 402 | B269: F2.3.8 | D269: 315mm x 315mm diameter uPVC Pipes | E269: No | F269: 10 | H269: =F269*G269 -> 0
A271: 403 | B271: F2.3.9 | D271: 355mm x 355mm diameter uPVC Pipes | E271: No | F271: 10 | H271: =F271*G271 -> 0
A273: 404 | B273: F2.3.10 | D273: 400mm x 400mm diameter uPVC Pipes | E273: No | F273: 10 | H273: =F273*G273 -> 0
A275: 405 | B275: F2.4 | C275: 8.2.2 | D275: Cast Iron Reducers (Class 16)
A277: 406 | B277: F2.4.1 | D277: 75mm to 63mm diameter for uPVC Pipes | E277: No | F277: 10 | H277: =F277*G277 -> 0
A279: 407 | B279: F2.4.2 | D279: 90mm to 63mm diameter for uPVC Pipes | E279: No | F279: 10 | H279: =F279*G279 -> 0
A281: 408 | B281: F2.4.3 | D281: 90mm to 75mm diameter for uPVC Pipes | E281: No | F281: 10 | H281: =F281*G281 -> 0
A283: 409 | B283: F2.4.4 | D283: 110mm to 63mm diameter for uPVC Pipes | E283: No | F283: 10 | H283: =F283*G283 -> 0
A285: 410 | B285: F2.4.5 | D285: 110mm to 75mm diameter for uPVC Pipes | E285: No | F285: 10 | H285: =F285*G285 -> 0
A287: 411 | B287: F2.4.6 | D287: 110mm to 90mm diameter for uPVC Pipes | E287: No | F287: 10 | H287: =F287*G287 -> 0
A289: 412 | B289: F2.4.7 | D289: 160mm to 90mm diameter for uPVC Pipes | E289: No | F289: 10 | H289: =F289*G289 -> 0
A291: 413 | B291: F2.4.8 | D291: 160mm to 110mm diameter for uPVC Pipes | E291: No | F291: 10 | H291: =F291*G291 -> 0
A293: 414 | B293: F2.4.9 | D293: 200mm to 110mm diameter for uPVC Pipes | E293: No | F293: 10 | H293: =F293*G293 -> 0
A295: 415 | B295: F2.4.10 | D295: 200mm to 160mm diameter for uPVC Pipes | E295: No | F295: 10 | H295: =F295*G295 -> 0
A297: 416 | B297: F2.4.11 | D297: 250mm to 160mm diameter for uPVC Pipes | E297: No | F297: 10 | H297: =F297*G297 -> 0
A299: 417 | B299: F2.4.12 | D299: 250mm to 200mm diameter for uPVC Pipes | E299: No | F299: 10 | H299: =F299*G299 -> 0
A301: 418 | B301: F2.4.13 | D301: 315mm to 200mm diameter for uPVC Pipes | E301: No | F301: 10 | H301: =F301*G301 -> 0
A303: 419 | B303: F2.4.14 | D303: 315mm to 250mm diameter for uPVC Pipes | E303: No | F303: 10 | H303: =F303*G303 -> 0
A305: 420 | B305: F2.4.15 | D305: 315mm to 250mm diameter for uPVC Pipes | E305: No | F305: 10 | H305: =F305*G305 -> 0
A310: TCF | B310: TOTAL CARRIED FORWARD | H310: =SUM(H235:H309) -> 0
B311: =ProjectTitle -> CONTRACT NO: VCW380/PWLPLM/24: MALUTI-A-PHOFUNG LOCAL MUNICIPALITY: APPOINTMENT OF A MAXIMUM OF FOUR (04) CONTRACTORS FOR THE REPAIRS OF POTABLE WATER LEAKS MALUTI-A-PHOFUNG LOCAL MUNICIPALITY IN PHUTHADITJABA | E311: SECTION F
E312: MEDIUM PRESSURE PIPELINES
A314: UID | B314: ITEM | C314: PAY REFS | D314: DESCRIPTION | E314: UNIT | F314: QTY | G314: RATE | H314: AMOUNT
A315: TBF | B315: TOTAL BROUGHT FORWARD | H315: =H310 -> 0
A317: 421 | B317: F2.4.16 | D317: 355mm to 200mm diameter for uPVC Pipes | E317: No | F317: 10 | H317: =F317*G317 -> 0
A319: 422 | B319: F2.4.17 | D319: 355mm to 250mm diameter for uPVC Pipes | E319: No | F319: 10 | H319: =F319*G319 -> 0
A321: 423 | B321: F2.4.18 | D321: 355mm to 315mm diameter for uPVC Pipes | E321: No | F321: 10 | H321: =F321*G321 -> 0
A323: 424 | B323: F2.4.19 | D323: 400mm to 200mm diameter for uPVC Pipes | E323: No | F323: 10 | H323: =F323*G323 -> 0
A325: 425 | B325: F2.4.20 | D325: 400mm to 250mm diameter for uPVC Pipes | E325: No | F325: 10 | H325: =F325*G325 -> 0
A327: 426 | B327: F2.4.21 | D327: 400mm to 315mm diameter for uPVC Pipes | E327: No | F327: 10 | H327: =F327*G327 -> 0
A329: 427 | B329: F2.4.22 | D329: 400mm to 355mm diameter for uPVC Pipes | E329: No | F329: 10 | H329: =F329*G329 -> 0
A331: 428 | B331: F2.5 | C331: 8.2.2 | D331: Cast Iron End Caps for uPVC Pipes (Class 16)
A333: 429 | B333: F2.5.1 | D333: 63mm diameter | E333: No. | F333: 10 | H333: =F333*G333 -> 0
A335: 430 | B335: F2.5.2 | D335: 75mm diameter | E335: No. | F335: 10 | H335: =F335*G335 -> 0
A337: 431 | B337: F2.5.3 | D337: 90mm diameter | E337: No. | F337: 10 | H337: =F337*G337 -> 0
A339: 432 | B339: F2.5.4 | D339: 110mm diameter | E339: No. | F339: 10 | H339: =F339*G339 -> 0
A341: 433 | B341: F2.5.5 | D341: 160mm diameter | E341: No. | F341: 10 | H341: =F341*G341 -> 0
A343: 434 | B343: F2.5.6 | D343: 200mm diameter | E343: No. | F343: 10 | H343: =F343*G343 -> 0
A345: 435 | B345: F2.5.7 | D345: 250mm diameter | E345: No. | F345: 10 | H345: =F345*G345 -> 0
A347: 436 | B347: F2.5.8 | D347: 315mm diameter | E347: No. | F347: 10 | H347: =F347*G347 -> 0
A349: 437 | B349: F2.5.9 | D349: 355mm diameter | E349: No. | F349: 10 | H349: =F349*G349 -> 0
A351: 438 | B351: F2.5.10 | D351: 400mm diameter | E351: No. | F351: 10 | H351: =F351*G351 -> 0
A353: 439 | B353: F2.6 | C353: 8.2.2 | D353: Cast Iron Flange Adaptors for uPVC Pipes (Class 16)
A355: 440 | B355: F2.6.1 | D355: 63mm diameter | E355: No. | F355: 10 | H355: =F355*G355 -> 0
A357: 441 | B357: F2.6.2 | D357: 75mm diameter | E357: No. | F357: 10 | H357: =F357*G357 -> 0
A359: 442 | B359: F2.6.3 | D359: 90mm diameter | E359: No. | F359: 10 | H359: =F359*G359 -> 0
A361: 443 | B361: F2.6.4 | D361: 110mm diameter | E361: No. | F361: 10 | H361: =F361*G361 -> 0
A363: 444 | B363: F2.6.5 | D363: 160mm diameter | E363: No. | F363: 10 | H363: =F363*G363 -> 0
A365: 445 | B365: F2.6.6 | D365: 200mm diameter | E365: No. | F365: 10 | H365: =F365*G365 -> 0
A367: 446 | B367: F2.6.7 | D367: 250mm diameter | E367: No. | F367: 10 | H367: =F367*G367 -> 0
A369: 447 | B369: F2.6.8 | D369: 315mm diameter | E369: No. | F369: 10 | H369: =F369*G369 -> 0
A371: 448 | B371: F2.6.9 | D371: 355mm diameter | E371: No. | F371: 10 | H371: =F371*G371 -> 0
A373: 449 | B373: F2.6.10 | D373: 400mm diameter | E373: No. | F373: 10 | H373: =F373*G373 -> 0
A375: 450 | B375: F2.7 | C375: 8.2.2 | D375: Couplings and Joints
A377: 451 | B377: F2.7.1 | D377: Flexible / dresser coupling 63 mm to 110 mm | E377: No. | F377: 20 | H377: =F377*G377 -> 0
A379: 452 | B379: F2.7.2 | D379: Flexible / dresser coupling 160 mm to 250 mm | E379: No. | F379: 20 | H379: =F379*G379 -> 0
A381: 453 | B381: F2.7.3 | D381: Flexible / dresser coupling 300 mm to 450 mm | E381: No. | F381: 20 | H381: =F381*G381 -> 0
A383: 454 | B383: F2.7.4 | D383: Dismantling joint 80 mm to 150 mm | E383: No. | F383: 20 | H383: =F383*G383 -> 0
A389: TCF | B389: TOTAL CARRIED FORWARD | H389: =SUM(H315:H388) -> 0
B390: =ProjectTitle -> CONTRACT NO: VCW380/PWLPLM/24: MALUTI-A-PHOFUNG LOCAL MUNICIPALITY: APPOINTMENT OF A MAXIMUM OF FOUR (04) CONTRACTORS FOR THE REPAIRS OF POTABLE WATER LEAKS MALUTI-A-PHOFUNG LOCAL MUNICIPALITY IN PHUTHADITJABA | E390: SECTION F
E391: MEDIUM PRESSURE PIPELINES
A393: UID | B393: ITEM | C393: PAY REFS | D393: DESCRIPTION | E393: UNIT | F393: QTY | G393: RATE | H393: AMOUNT
A394: TBF | B394: TOTAL BROUGHT FORWARD | H394: =H389 -> 0
A396: 455 | B396: F2.7.5 | D396: Dismantling joint 200 mm to 300 mm | E396: No. | F396: 20 | H396: =F396*G396 -> 0
A398: 456 | B398: F3 | C398: 8.2.3 | D398: Valves Extra over 8.2.1 for supply (include materials) and install on concrete support, joint, include cutting of pipes where necessary and testing, complete with fittings, pipe work and couplings, where necessary.
A400: 457 | B400: F3.1 | D400: AVK Socketed RS Gate Valves including all couplings for GMS, epoxy coated, flanged both ends to table 1600/3 on the following pipe diameter:
A402: 458 | B402: F3.1.1 | D402: 63mm diameter | E402: No. | F402: 10 | H402: =F402*G402 -> 0
A404: 459 | B404: F3.1.2 | D404: 75mm diameter | E404: No. | F404: 10 | H404: =F404*G404 -> 0
A406: 460 | B406: F3.1.3 | D406: 90mm diameter | E406: No. | F406: 10 | H406: =F406*G406 -> 0
... 195 more rows

Sheet G
B1: =ProjectTitle -> CONTRACT NO: VCW380/PWLPLM/24: MALUTI-A-PHOFUNG LOCAL MUNICIPALITY: APPOINTMENT OF A MAXIMUM OF FOUR (04) CONTRACTORS FOR THE REPAIRS OF POTABLE WATER LEAKS MALUTI-A-PHOFUNG LOCAL MUNICIPALITY IN PHUTHADITJABA | E1: SECTION G
E2: CONCRETE (SMALL WORKS)
A4: UID | B4: ITEM | C4: PAY REFS | D4: DESCRIPTION | E4: UNIT | F4: QTY | G4: RATE | H4: AMOUNT
A6: 625 | B6: G | C6: SANS 1200GA | D6: SECTION G: CONCRETE (SMALL WORKS)
A8: 626 | B8: G1 | D8: Concrete Chamber for All Types of Valves
A10: 627 | B10: G1.1 | C10: SANS 1200DB | D10: Excavation
A12: 628 | B12: G1.1.1 | C12: 8.3.2(a) | D12: Excavation for valve chambers in all materials, including hard rock | E12: m³ | F12: 66 | H12: =G12*F12 -> 0
A14: 629 | B14: G1.1.2 | D14: Level and Compact in-situ material on excavation bottom to 90% Mod. AASHTO in layer of 150mm | E14: m² | F14: 35 | H14: =G14*F14 -> 0
A16: 630 | B16: G1.1.3 | C16: SANS 1200DB 8.3.2(c) | D16: Excavate and dispose of unsuitable material from excavation bottom | E16: m³ | F16: 23 | H16: =G16*F16 -> 0
A18: 631 | B18: G1.1.4 | C18: 8.3.3.1 | D18: Import selected G6 material obtained for commercial sources and compact in layers of 150mm thickness | E18: m³ | F18: 23 | H18: =G18*F18 -> 0
A20: 632 | B20: G1.1.5 | D20: 19mm Crushed stone, 200m thick layer | E20: m³ | F20: 12 | H20: =G20*F20 -> 0
A22: 633 | B22: G1.2 | C22: SANS 1200 GA 8.2 | D22: Rough Formwork
A24: 634 | B24: G1.2.1 | C24: 8.2.1 | D24: External faces of scour valve base including 20mm x 20mm chamfer to all vertical and horizonal edges | E24: m² | F24: 6 | H24: =G24*F24 -> 0
A26: 635 | B26: G1.3 | C26: 8.2.2 | D26: Smooth Formwork
A28: 636 | B28: G1.3.1 | D28: Plane Horizontal Formwork
A30: 637 | B30: G1.3.1.1 | D30: Soffit of roof slab | E30: m² | F30: 14 | H30: =G30*F30 -> 0
A32: 638 | B32: G1.3.2 | D32: Plane Vertical Formwork
A34: 639 | B34: G1.3.2.1 | D34: Internal faces of the scour valve | E34: m² | F34: 56 | H34: =G34*F34 -> 0
A36: 640 | B36: G1.3.2.2 | D36: Exterior vertical faces including 20mm x 20mm chamfer to all vertical and horizonal edges | E36: m² | F36: 26 | H36: =G36*F36 -> 0
A38: 641 | B38: G1.4 | C38: 8.4 | D38: Concrete
A40: 642 | B40: G1.4.1 | C40: 8.4.2 | D40: 50mm Class 15/19 Blinding layer for scour valve chamber | E40: m³ | F40: 2 | H40: =G40*F40 -> 0
A42: 643 | B42: G1.5 | C42: 8.4.3 | D42: Strength Concrete Class 30/19 Fast Curing
A44: 644 | B44: G1.5.1 | D44: Chamber floor | E44: m³ | F44: 5 | H44: =G44*F44 -> 0
A46: 645 | B46: G1.5.2 | D46: Chamber walls | E46: m³ | F46: 9 | H46: =G46*F46 -> 0
A48: 646 | B48: G1.5.3 | D48: Chamber roof slab | E48: m³ | F48: 2 | H48: =G48*F48 -> 0
A50: 647 | B50: G1.6 | C50: 8.3.1 | D50: Reinforcement
A52: 648 | B52: G1.6.1 | D52: Y10 High yield mild steel bars | E52: t | F52: 0.10 | H52: =G52*F52 -> 0
A54: 649 | B54: G1.6.2 | D54: Y12 High yield mild steel bars | E54: t | F54: 0.720 | H54: =G54*F54 -> 0
A56: 650 | B56: G1.6.3 | D56: Y16 High yield mild steel bars | E56: t | F56: 0.10 | H56: =G56*F56 -> 0
A58: 651 | B58: G1.7 | C58: 8.3.2 | D58: High tensile welded mesh
A60: 652 | B60: G1.7.1 | D60: Mesh Ref 617 | E60: m² | F60: 12 | H60: =G60*F60 -> 0
A62: 653 | B62: G1.7.2 | D62: Mesh Ref 888 | E62: m² | F62: 62 | H62: =G62*F62 -> 0
A64: 654 | B64: G1.8 | C64: 8.4.4 | D64: Unformed Surface Finishes
A69: TCF | B69: TOTAL CARRIED FORWARD | H69: =SUM(H5:H68) -> 0
B70: =ProjectTitle -> CONTRACT NO: VCW380/PWLPLM/24: MALUTI-A-PHOFUNG LOCAL MUNICIPALITY: APPOINTMENT OF A MAXIMUM OF FOUR (04) CONTRACTORS FOR THE REPAIRS OF POTABLE WATER LEAKS MALUTI-A-PHOFUNG LOCAL MUNICIPALITY IN PHUTHADITJABA | E70: SECTION G
E71: CONCRETE (SMALL WORKS)
A73: UID | B73: ITEM | C73: PAY REFS | D73: DESCRIPTION | E73: UNIT | F73: QTY | G73: RATE | H73: AMOUNT
A74: TBF | B74: TOTAL BROUGHT FORWARD | H74: =H69 -> 0
A76: 655 | B76: G1.8.1 | D76: Wood-floated finish | E76: m² | F76: 10 | H76: =G76*F76 -> 0
A78: 656 | B78: G2 | D78: Manhole Covers
A80: 657 | B80: G2.1 | D80: Lockable Securex Y-560-C Ductile Iron Manhole Cover Class C250 or similar approved | E80: No | F80: 10 | H80: =G80*F80 -> 0
A148: TSF | B148: TOTAL SECTION G CARRIED TO SUMMARY | H148: =SUM(H74:H147) -> 0

Sheet H
B1: =ProjectTitle -> CONTRACT NO: VCW380/PWLPLM/24: MALUTI-A-PHOFUNG LOCAL MUNICIPALITY: APPOINTMENT OF A MAXIMUM OF FOUR (04) CONTRACTORS FOR THE REPAIRS OF POTABLE WATER LEAKS MALUTI-A-PHOFUNG LOCAL MUNICIPALITY IN PHUTHADITJABA | E1: SECTION H
E2: LEAK DETECTION
A4: UID | B4: ITEM | C4: PAY REFS | D4: DESCRIPTION | E4: UNIT | F4: QTY | G4: RATE | H4: AMOUNT
A6: 658 | B6: H | D6: SECTION H: LEAK DETECTION
A8: 659 | B8: H1 | C8: PSLD-1 | D8: Desktop review and prioritisation of suspected leak points / existing leak sheets | E8: No. | F8: 90 | H8: =F8*G8 -> 0
A10: 660 | B10: H2 | C10: PSLD-2 | D10: Visible leak inspection and confirmation | E10: No. | F10: 100 | H10: =F10*G10 -> 0
A12: 661 | B12: H3 | C12: PSLD-3 | D12: Acoustic leak detection survey on distribution / trunk mains | E12: km | F12: 40 | H12: =F12*G12 -> 0
A14: 662 | B14: H4 | C14: PSLD-4 | D14: Ground microphone / listening stick pinpointing at suspected leak location | E14: No. | F14: 90 | H14: =F14*G14 -> 0
A16: 663 | B16: H5 | C16: PSLD-5 | D16: Correlator-based leak detection and pinpointing | E16: No. | F16: 50 | H16: =F16*G16 -> 0
A18: 664 | B18: H6 | C18: PSLD-6 | D18: Noise logger deployment, retrieval and interpretation | E18: Week | F18: 10 | H18: =F18*G18 -> 0
A20: 665 | B20: H7 | C20: PSLD-7 | D20: Flow logging and night-flow assessment | E20: Week | F20: 10 | H20: =F20*G20 -> 0
A22: 666 | B22: H8 | C22: PSLD-8 | D22: Pressure logging and pressure profile assessment | E22: Week | F22: 10 | H22: =F22*G22 -> 0
A24: 667 | B24: H9 | C24: PSLD-9 | D24: Step test / zone isolation test | E24: No. | F24: 10 | H24: =F24*G24 -> 0
A26: 668 | B26: H10 | C26: PSLD-10 | D26: Reservoir drop test and leakage assessment | E26: No. | F26: 10 | H26: =F26*G26 -> 0
A28: 669 | B28: H11 | C28: PSLD-11 | D28: Pegging, marking and recording confirmed leak location with coordinates and photo | E28: No. | F28: 90 | H28: =F28*G28 -> 0
A75: TSF | B75: TOTAL SECTION H CARRIED TO SUMMARY | H75: =SUM(H5:H74) -> 0

Sheet I
B1: =ProjectTitle -> CONTRACT NO: VCW380/PWLPLM/24: MALUTI-A-PHOFUNG LOCAL MUNICIPALITY: APPOINTMENT OF A MAXIMUM OF FOUR (04) CONTRACTORS FOR THE REPAIRS OF POTABLE WATER LEAKS MALUTI-A-PHOFUNG LOCAL MUNICIPALITY IN PHUTHADITJABA | E1: SECTION I
E2: RESERVOIR SEALING AND WATERPROOFING
A4: UID | B4: ITEM | C4: PAY REFS | D4: DESCRIPTION | E4: UNIT | F4: QTY | G4: RATE | H4: AMOUNT
A6: 670 | B6: I | D6: SECTION I: RESERVOIR SEALING AND WATERPROOFING
A8: 671 | B8: I1 | D8: Sealing and Waterproofing
A10: 672 | B10: I1.1 | C10: PSRS-1 | D10: Prepare and seal leaking construction / movement joint in reservoir or chamber complete | E10: m | F10: 150 | H10: =F10*G10 -> 0
A12: 673 | B12: I1.2 | C12: PSRS-2 | D12: Inject and seal structural crack in water-retaining structure complete | E12: m | F12: 100 | H12: =F12*G12 -> 0
A14: 674 | B14: I1.3 | C14: PSRS-3 | D14: Apply two-component polymer-modified cementitious flexible waterproof coating, potable-water approved, in minimum two coats to 2.0 mm DFT on prepared surface complete | E14: m² | F14: 500 | H14: =F14*G14 -> 0
A16: 675 | B16: I1.4 | C16: PSRS-4 | D16: Supply and apply approved epoxy / polymer repair mortar to local defects, honeycombing or spalled concrete complete | E16: m² | F16: 60 | H16: =F16*G16 -> 0
A18: 676 | B18: I2 | D18: Pipework, Valves and Accessories
A20: 677 | B20: I2.1 | C20: PSRS-5 | D20: Repair leaking scour, overflow, inlet or outlet pipework at reservoir or chamber | E20: No. | F20: 10 | H20: =F20*G20 -> 0
A22: 678 | B22: I2.2 | C22: PSRS-6 | D22: Replace or refurbish altitude / float / level control valve, Bermad or similar approved type, complete | E22: No. | F22: 10 | H22: =F22*G22 -> 0
A24: 679 | B24: I2.3 | C24: PSRS-7 | D24: Repair / replace chamber floor drain, sump or drainage arrangement | E24: No. | F24: 10 | H24: =F24*G24 -> 0
A26: 680 | B26: I2.4 | C26: PSRS-8 | D26: Repair leaking hatch, roof slab penetration, vent or access detail complete | E26: No. | F26: 10 | H26: =F26*G26 -> 0
A28: 681 | B28: I3 | C28: SANS 1200 GA | D28: Structural Repairs
A30: 682 | B30: I3.1 | C30: 8.4.3 | D30: Mass concrete 20 MPa / 19 mm nominal stone to chamber bases, plinths and minor works | E30: m³ | F30: 10 | H30: =F30*G30 -> 0
A32: 683 | B32: I3.2 | C32: 8.4.3 | D32: Reinforced concrete 25 MPa / 19 mm nominal stone to chamber walls, slabs and local repairs | E32: m³ | F32: 10 | H32: =F32*G32 -> 0
A34: 684 | B34: I3.3 | C34: 8.4.3 | D34: Reinforced concrete 30 MPa / 19 mm nominal stone to water-retaining structural repairs or new works | E34: m³ | F34: 10 | H34: =F34*G34 -> 0
A36: 685 | B36: I3.4 | C36: 8.3.1 | D36: High tensile reinforcement complete | E36: t | F36: 4 | H36: =F36*G36 -> 0
A38: 686 | B38: I3.5 | C38: 8.2.2 | D38: Formwork Smooth to sides of concrete | E38: m² | F38: 55 | H38: =F38*G38 -> 0
A40: 687 | B40: I3.6 | C40: 8.2.2 | D40: Formwork Smooth to soffits, slabs and beams | E40: m² | F40: 30 | H40: =F40*G40 -> 0
A42: 688 | B42: I3.7 | C42: 8.7 | D42: Non-shrink grout to baseplates, valve pedestals, plinths and similar works | E42: m³ | F42: 5 | H42: =F42*G42 -> 0
A44: 689 | B44: I4 | D44: Ancilliary Works
A46: 690 | B46: I4.1 | C46: PSRS-16 | D46: Refurbish security fence, gate and lock arrangement at reservoir / chamber | E46: Item | F46: 5 | H46: =F46*G46 -> 0
A48: 691 | B48: I4.2 | C48: PSRS-17 | D48: Make good internal plaster / screed / fillet to wall-floor junctions complete | E48: m | F48: 50 | H48: =F48*G48 -> 0
A61: TSF | B61: TOTAL SECTION I CARRIED TO SUMMARY | H61: =SUM(H5:H60) -> 0

Sheet J
B1: =ProjectTitle -> CONTRACT NO: VCW380/PWLPLM/24: MALUTI-A-PHOFUNG LOCAL MUNICIPALITY: APPOINTMENT OF A MAXIMUM OF FOUR (04) CONTRACTORS FOR THE REPAIRS OF POTABLE WATER LEAKS MALUTI-A-PHOFUNG LOCAL MUNICIPALITY IN PHUTHADITJABA | E1: SECTION J
E2: METERING, ZONE CONTROL & TELEMETRY
A4: UID | B4: ITEM | C4: PAY REFS | D4: DESCRIPTION | E4: UNIT | F4: QTY | G4: RATE | H4: AMOUNT
A6: 692 | B6: J | D6: SECTION J: METERING, ZONE CONTROL & TELEMETRY
A8: 693 | B8: J1 | C8: PSMZ 1 | D8: Bulk and Zone Metering
A10: 694 | B10: J1.1 | D10: Supply and install electromagnetic bulk / zone flow meter 80 mm to 100 mm complete | E10: No. | F10: 10 | H10: =F10*G10 -> 0
A12: 695 | B12: J1.2 | D12: Supply and install electromagnetic bulk / zone flow meter 150 mm to 200 mm complete | E12: No. | F12: 10 | H12: =F12*G12 -> 0
A14: 696 | B14: J1.3 | D14: Supply and install electromagnetic bulk / zone flow meter 250 mm to 400 mm complete | E14: No. | F14: 10 | H14: =F14*G14 -> 0
A16: 697 | B16: J1.4 | C16: PSMZ-4 | D16: Replace faulty existing bulk meter complete | E16: No. | F16: 10 | H16: =F16*G16 -> 0
A18: 698 | B18: J1.5 | C18: PSMZ-5 | D18: Temporary clamp-on ultrasonic flow survey complete | E18: Week | F18: 20 | H18: =F18*G18 -> 0
A20: 699 | B20: J2 | D20: Zone Control, Loggers and Telemetry
A22: 700 | B22: J2.1 | C22: PSMZ-6 | D22: Pressure logger supplied, installed, downloaded and reported | E22: Logger-week | F22: 40 | H22: =F22*G22 -> 0
A24: 701 | B24: J2.2 | C24: PSMZ-7 | D24: Flow logger supplied, installed, downloaded and reported | E24: Logger-week | F24: 30 | H24: =F24*G24 -> 0
A26: 702 | B26: J2.3 | C26: PSMZ-8 | D26: RTU / telemetry panel upgrade or replacement at meter / reservoir / PRV site | E26: No. | F26: 10 | H26: =F26*G26 -> 0
A28: 703 | B28: J2.4 | C28: PSMZ-9 | D28: Solar power supply / battery backup for remote meter or telemetry site | E28: No. | F28: 10 | H28: =F28*G28 -> 0
A30: 704 | B30: J2.5 | C30: PSMZ-10 | D30: Zone meter chamber, spool pieces and isolation arrangement complete fer to typical detail drawing no 6253-PCE-??? | E30: No. | F30: 10 | H30: =F30*G30 -> 0
A32: 705 | B32: J2.6 | C32: PSMZ-11 | D32: Calibration and commissioning of bulk / zone meter | E32: No. | F32: 30 | H32: =F32*G32 -> 0
A71: TSF | B71: TOTAL SECTION J CARRIED TO SUMMARY | H71: =SUM(H5:H70) -> 0

Sheet K
B1: =ProjectTitle -> CONTRACT NO: VCW380/PWLPLM/24: MALUTI-A-PHOFUNG LOCAL MUNICIPALITY: APPOINTMENT OF A MAXIMUM OF FOUR (04) CONTRACTORS FOR THE REPAIRS OF POTABLE WATER LEAKS MALUTI-A-PHOFUNG LOCAL MUNICIPALITY IN PHUTHADITJABA | E1: SECTION K
E2: TEMPORARY SUPPLY, TESTING & COMMISSIONING
A4: UID | B4: ITEM | C4: PAY REFS | D4: DESCRIPTION | E4: UNIT | F4: QTY | G4: RATE | H4: AMOUNT
A6: 706 | B6: K | D6: SECTION K: TEMPORARY SUPPLY, TESTING & COMMISSIONING
A8: 707 | B8: K1 | D8: Tempory Supply and Shutdowns
A10: 708 | B10: K1.1 | C10: PSTS-1 | D10: Shutdown planning, notices and operational coordination | E10: Per Shutdown | F10: 30 | H10: =F10*G10 -> 0
A12: 709 | B12: K1.2 | C12: PSTS-2 | D12: Valve isolation and controlled shutdown / re-opening operation | E12: Per Event | F12: 60 | H12: =F12*G12 -> 0
A14: 710 | B14: K1.3 | C14: PSTS-3 | D14: Temporary bypass pumping arrangement | E14: Day | F14: 60 | H14: =F14*G14 -> 0
A16: 711 | B16: K1.4 | C16: PSTS-4 | D16: Temporary overland hose / bypass line up to 100 mm | E16: m-day | F16: 1,000 | H16: =F16*G16 -> 0
A18: 712 | B18: K1.5 | C18: PSTS-5 | D18: Temporary overland hose / bypass line above 100 mm | E18: m-day | F18: 500 | H18: =F18*G18 -> 0
A20: 713 | B20: K2 | D20: Testing, Disinfection and Handover
A22: 714 | B22: K2.1 | C22: PSTS-6 | D22: Pressure test of repaired or replacement pipeline section | E22: Per Test | F22: 30 | H22: =F22*G22 -> 0
A24: 715 | B24: K2.2 | C24: PSTS-7 | D24: Flush, disinfect and commission repaired / replaced section | E24: Per Event | F24: 30 | H24: =F24*G24 -> 0
A26: 716 | B26: K2.3 | C26: PSTS-8 | D26: Water quality sampling and compliance confirmation after repair | E26: No. | F26: 20 | H26: =F26*G26 -> 0
A28: 717 | B28: K2.4 | C28: PSTS-9 | D28: Completion record including photographs, coordinates and asset update data | E28: No. | F28: 100 | H28: =F28*G28 -> 0
A74: TSF | B74: TOTAL SECTION K CARRIED TO SUMMARY | H74: =SUM(H5:H73) -> 0

Sheet L
B1: =ProjectTitle -> CONTRACT NO: VCW380/PWLPLM/24: MALUTI-A-PHOFUNG LOCAL MUNICIPALITY: APPOINTMENT OF A MAXIMUM OF FOUR (04) CONTRACTORS FOR THE REPAIRS OF POTABLE WATER LEAKS MALUTI-A-PHOFUNG LOCAL MUNICIPALITY IN PHUTHADITJABA | E1: SECTION L
E2: PROVISIONAL SUMS
A4: UID | B4: ITEM | C4: PAY REFS | D4: DESCRIPTION | E4: UNIT | F4: QTY | G4: RATE | H4: AMOUNT
A6: 718 | B6: L | D6: SECTION L: PROVISIONAL SUMS
A8: 719 | B8: L1 | C8: SANS 1200A 8.5 | D8: Sum Stated Provisionally by Engineer
A10: 720 | B10: L1.1 | D10: Arrange for tests to be carried out, as required by the Engineer, by an accredited laboratory. | E10: Prov. Sum | F10: 1 | G10: R100,000.00 | H10: =F10*G10 -> R 100 000.00
A12: 721 | B12: L1.2 | D12: Overheads, charges and profit on item L1.1 | E12: % | F12: R100,000.00 | H12: =F12*G12 -> 0
A14: 722 | B14: L1.3 | D14: Engineer's accommodation and transportation charges | E14: Prov. Sum | F14: 1 | G14: R500,000.00 | H14: =F14*G14 -> R 500 000.00
A16: 723 | B16: L1.4 | D16: Overheads, charges and profit over Item L1.3 | E16: % | F16: R500,000.00 | H16: =F16*G16 -> 0
A18: 724 | B18: L1.5 | D18: Engineer's additional Monitoring and Quality Control Charges | E18: Prov. Sum | F18: 1 | G18: R300,000.00 | H18: =F18*G18 -> R 300 000.00
A20: 725 | B20: L1.6 | D20: Overheads, charges and profit on item L1.5 | E20: % | F20: R300,000.00 | H20: =F20*G20 -> 0
A22: 726 | B22: L1.7 | C22: 8.8.5 | D22: Trigonometrical Surveys and submission of survey data (.csv) and drawings (.dwg) in electroicnic format to the Engineers | E22: Prov. Sum | F22: 1 | G22: R100,000.00 | H22: =F22*G22 -> R 100 000.00
A24: 727 | B24: L1.8 | D24: Overheads, charges and profit on item L1.7 | E24: % | F24: R100,000.00 | H24: =F24*G24 -> 0
A26: 728 | B26: L1.9 | D26: Provisional sum for specialist asbestos sampling, air monitoring and disposal oversight | E26: Prov. Sum | F26: 1 | G26: R100,000.00 | H26: =F26*G26 -> R 100 000.00
A28: 729 | B28: L1.10 | D28: Overheads, charges and profit on item L1.9 | E28: % | F28: R100,000.00 | H28: =F28*G28 -> 0
A30: 730 | B30: L1.11 | D30: Provisional sum for specialist reservoir structural assessment and sealing design input | E30: Prov. Sum | F30: 1 | G30: R200,000.00 | H30: =F30*G30 -> R 200 000.00
A32: 731 | B32: L1.12 | D32: Overheads, charges and profit on item L1.11 | E32: % | F32: R200,000.00 | H32: =F32*G32 -> 0
A34: 732 | B34: L1.13 | D34: Provisional sum for survey / GIS specialist support | E34: Prov. Sum | F34: 1 | G34: R100,000.00 | H34: =F34*G34 -> R 100 000.00
A36: 733 | B36: L1.14 | D36: Overheads, charges and profit on item L1.13 | E36: % | F36: R100,000.00 | H36: =F36*G36 -> 0
A38: 734 | B38: L1.15 | D38: Provisional sum for emergency utility diversions / third-party approvals | E38: Prov. Sum | F38: 1 | G38: R100,000.00 | H38: =F38*G38 -> R 100 000.00
A40: 735 | B40: L1.16 | D40: Overheads, charges and profit on item L1.15 | E40: % | F40: R100,000.00 | H40: =F40*G40 -> 0
A80: TSF | B80: TOTAL SECTION L CARRIED TO SUMMARY | H80: =SUM(H5:H79) -> R1,500,000.00

Sheet Summary
B2: CONTRACT NO: VCW380/PWLPLM/24: MALUTI-A-PHOFUNG LOCAL MUNICIPALITY: APPOINTMENT OF A MAXIMUM OF FOUR (04) CONTRACTORS FOR THE REPAIRS OF POTABLE WATER LEAKS MALUTI-A-PHOFUNG LOCAL MUNICIPALITY IN PHUTHADITJABA
B6: A | C6: PRELIMINARY AND GENERAL | D6: ='A '!H322 -> R490,000.00
B8: B | C8: DAYWORKS | D8: =B!H73 -> R250,000.00
B10: C | C10: SITE CLEARANCE | D10: ='C '!H140 -> 0
B12: D | C12: EARTHWORKS (PIPE TRENCHES | D12: =D!H277 -> R300,000.00
B14: E | C14: BEDDING (PIPES) | D14: =E!H74 -> 0
B16: F | C16: MEDIUM PRESSURE PIPELINES | D16: =F!H857 -> 0
B18: G | C18: CONCRETE (SMALL WORKS) | D18: =G!H148 -> 0
B20: H | C20: LEAK DETECTION | D20: =H!H75 -> 0
B22: I | C22: RESERVOIR SEALING AND WATERPROOFING | D22: =I!H61 -> 0
B24: J | C24: METERING, ZONE CONTROL & TELEMETRY | D24: =J!H71 -> 0
B26: K | C26: TEMPORARY SUPPLY, TESTING & COMMISSIONING | D26: =K!H74 -> 0
B28: L | C28: PROVISIONAL SUMS | D28: =L!H80 -> R1,500,000.00
C30: SUBTOTAL | D30: =SUM(D6:D29) -> R2,540,000.00
C32: 10% CONTINGENCIES | D32: =D30*0.1 -> R254,000.00
C34: SUBTOTAL | D34: =SUM(D30:D33) -> R2,794,000.00
C36: 15 % VALUE ADDED TAX | D36: =D34*0.15 -> R419,100.00
C38: TOTAL | D38: =D34+D36 -> R3,213,100.00
